{"text_format":"1","workbook":"xlsx","n_sheets":7,"sheets":["NEW_VB_config","Planification_Autres","Planification_Safety_N2","Planification_EOBD_matrices","Planification_figeages","Planification_Safety_N1_diagt","ESSAI_QPDC"],"not_rendered":{"charts":0,"images":0,"macros":1,"external_links":5,"defined_names":464,"comments":5,"pivot_tables":0},"unopened":[],"bounds":{"document_bytes":16777216,"sheet_cells":100000,"rows_first":2000,"rows_last":500,"rows_between":2000,"halvings":0,"cell_chars":16384,"cell_head_chars":4096},"cells_cut":0,"cells_raw":0,"read":"whole","date_system":"1900"}

{"sheet":"NEW_VB_config","index":0,"n_rows":23,"n_cols":17,"rows_kept":23,"cut":false,"hidden":false,"merged":[[13,6,13,7],[13,8,13,14],[14,6,14,7],[14,8,14,14],[33,2,44,4]]}
[null,null,null,null,null,null,null,null,null,"Dont' change",null,null,null,null,"Sheets list","NOM1 Prenom1","Project list"]
[null,null,null,null,null,null,null,null,null,null,null,null,null,null,"Planification_EOBD_matrices","NOM1 Prenom1","LP_PHEV_EU"]
[null,null,null,null,null,null,null,null,null,null,null,null,null,null,"Planification_Safety_N1_diagt","NOM2 Prenom2","LP_PHEV_EU_v2"]
[null,null,null,null,null,null,null,null,null,null,null,null,null,null,"Planification_Safety_N2","NOM3 Prenom3","LS_PHEV_China6"]
[null,null,null,null,null,null,null,null,null,null,null,null,null,null,"Planification_Autres","NOM4 Prenom4","LS_PHEV_EU"]
[null,null,null,null,null,null,null,null,null,null,null,null,null,null,"Planification_figeages","NOM5 Prenom5","LS_PHEV_EIC"]
[null,null,null,null,null,null,null,null,null,null,null,null,null,null,null,"NOM5 Prenom5","Transversal"]
[null,null,null,null,null,null,null,null,null,null,null,null,null,null,null,"NOM6 Prenom6","Divers"]
[null,null,null,null,null,null,null,null,null,null,null,null,null,null,null,"NOM7 Prenom7","PHEV_LP_LS"]
[null,null,null,null,null,null,null,null,null,null,null,null,null,null,null,"NOM8 Prenom8","PHEV_LP_LS_MATRICES"]
[null,null,null,null,null,null,null,null,null,null,null,null,null,null,null,"NOM9 Prenom9","SUPPRIME"]
[null,null,null,null,null,null,null,null,null,null,null,null,null,null,null,"NOM10 Prenom10","ls_PHEV_4x2"]
[null,null,null,null,null,null,null,null,null,null,null,null,null,null,null,"NOM11 Prenom11","a"]
[null,null,null,null,null,null,null,null,null,null,null,null,null,null,null,"NOM12 Prenom12","q"]
[null,null,null,null,null,null,null,null,null,null,null,null,null,null,null,"NOM13 Prenom13","SUPPRIME"]
[null,null,null,null,null,null,null,null,null,null,null,null,null,null,null,"NOM14 Prenom14","Divers"]
[null,null,null,null,null,null,null,null,null,null,null,null,null,null,null,"NOM15 Prenom15","e"]
[null,null,null,null,null,null,null,null,null,null,null,null,null,null,null,"NOM16 Prenom16","r"]
[null,null,null,null,null,null,null,null,null,null,null,null,null,null,null,"NOM17 Prenom17"]
[null,null,null,null,null,null,null,null,null,null,null,null,null,null,null,"NOM18 Prenom18"]
[null,null,null,null,null,null,null,null,null,null,null,null,null,null,null,"NOM19 Prenom19"]
[null,null,null,null,null,null,null,null,null,null,null,null,null,null,null,"NOM20 Prenom20"]
[null,null,null,null,null,null,null,null,null,null,null,null,null,null,null,"NOM21 Prenom21"]

{"sheet":"Planification_Autres","index":1,"n_rows":288,"n_cols":14,"rows_kept":288,"cut":false,"hidden":false,"merged":[]}
["Projet","Appli"]
["LP_PHEV_EU"]
["Transversal",null,null,null,null,null,null,null,null,null,null,null,null,4444]
["LP_PHEV_EU"]
["LP_PHEV_EU"]
["LP_PHEV_EU"]
["Divers",null,null,null,null,null,null,null,null,null,null,null,null,2222]
["LP_PHEV_EU"]
["LP_PHEV_EU"]
["LP_PHEV_EU"]
["LP_PHEV_EU"]
["LP_PHEV_EU"]
["LP_PHEV_EU"]
["LP_PHEV_EU"]
["LP_PHEV_EU"]
["LP_PHEV_EU"]
["LP_PHEV_EU"]
["LP_PHEV_EU"]
["LP_PHEV_EU"]
["LP_PHEV_EU"]
["LP_PHEV_EU"]
["LP_PHEV_EU"]
["LP_PHEV_EU"]
["LP_PHEV_EU"]
["LP_PHEV_EU"]
["LP_PHEV_EU"]
["LP_PHEV_EU"]
["LP_PHEV_EU"]
["LP_PHEV_EU"]
["LP_PHEV_EU"]
["LP_PHEV_EU"]
["LP_PHEV_EU"]
["LP_PHEV_EU"]
["LP_PHEV_EU"]
["LP_PHEV_EU"]
["LP_PHEV_EU"]
["LP_PHEV_EU"]
["SUPPRIME"]
["SUPPRIME"]
["SUPPRIME"]
["SUPPRIME"]
["SUPPRIME"]
["SUPPRIME"]
["SUPPRIME"]
["SUPPRIME"]
["SUPPRIME"]
["SUPPRIME"]
["SUPPRIME"]
["SUPPRIME"]
["SUPPRIME"]
["SUPPRIME"]
["SUPPRIME"]
["LP_PHEV_EU"]
["LP_PHEV_EU"]
["LP_PHEV_EU"]
["LP_PHEV_EU"]
["LP_PHEV_EU"]
["Divers"]
["Divers"]
["Divers"]
["Divers"]
["Divers"]
["Divers"]
["Divers"]
["Divers"]
["Divers"]
["Divers"]
["Divers"]
["Divers"]
["Divers"]
["Divers"]
["Divers"]
["Divers"]
["Divers"]
["Divers"]
["Divers"]
["Divers"]
["Divers"]
["Divers"]
["Divers"]
["Divers"]
["Divers"]
["Divers"]
["Divers"]
["Divers"]
["Divers"]
["Divers"]
["Divers"]
["Divers"]
["Divers"]
["Divers"]
["Divers"]
["Divers"]
["Divers"]
["Divers"]
["Divers"]
["Divers"]
["Divers"]
["Divers"]
["Divers"]
["Divers"]
["Divers"]
["Divers"]
["Divers"]
["Divers"]
["Divers"]
["Divers"]
["Divers"]
["Divers"]
["Divers"]
["Divers"]
["Divers"]
["Divers"]
["Divers"]
["Divers"]
["Divers"]
["Divers"]
["Divers"]
["Divers"]
["Divers"]
["Divers"]
["Divers"]
["Divers"]
["Divers"]
["Divers"]
["Divers"]
["Divers"]
["Divers"]
["Divers"]
["Divers"]
["Divers"]
["Divers"]
["Divers"]
["Divers"]
["Divers"]
["Divers"]
["Divers"]
["Divers"]
["Divers"]
["Divers"]
["Divers"]
["Divers"]
["Divers"]
["Divers"]
["Divers"]
["Divers"]
["Divers"]
["Divers"]
["Divers"]
["Divers"]
["Divers"]
["Divers"]
["Divers"]
["Divers"]
["Divers"]
["Divers"]
["Divers"]
["Divers"]
["Divers"]
["Divers"]
["Divers"]
["Divers"]
["PHEV_LP_LS"]
["PHEV_LP_LS"]
["PHEV_LP_LS"]
["PHEV_LP_LS"]
["PHEV_LP_LS"]
["PHEV_LP_LS"]
["PHEV_LP_LS"]
["PHEV_LP_LS"]
["PHEV_LP_LS"]
["PHEV_LP_LS"]
["PHEV_LP_LS"]
["PHEV_LP_LS"]
["PHEV_LP_LS"]
["PHEV_LP_LS"]
["PHEV_LP_LS"]
["PHEV_LP_LS"]
["PHEV_LP_LS"]
["PHEV_LP_LS"]
["PHEV_LP_LS"]
["PHEV_LP_LS"]
["PHEV_LP_LS"]
["PHEV_LP_LS"]
["PHEV_LP_LS"]
["PHEV_LP_LS"]
["PHEV_LP_LS"]
["PHEV_LP_LS"]
["PHEV_LP_LS"]
["PHEV_LP_LS"]
["PHEV_LP_LS"]
["PHEV_LP_LS"]
["PHEV_LP_LS"]
["PHEV_LP_LS"]
["PHEV_LP_LS"]
["PHEV_LP_LS"]
["PHEV_LP_LS"]
["PHEV_LP_LS"]
["PHEV_LP_LS"]
["PHEV_LP_LS"]
["PHEV_LP_LS"]
["PHEV_LP_LS"]
["PHEV_LP_LS"]
["PHEV_LP_LS"]
["PHEV_LP_LS"]
["PHEV_LP_LS"]
["PHEV_LP_LS"]
["PHEV_LP_LS"]
["PHEV_LP_LS"]
["PHEV_LP_LS"]
["PHEV_LP_LS"]
["PHEV_LP_LS"]
["PHEV_LP_LS"]
["PHEV_LP_LS"]
["PHEV_LP_LS"]
["PHEV_LP_LS"]
["PHEV_LP_LS"]
["PHEV_LP_LS"]
["PHEV_LP_LS"]
["PHEV_LP_LS"]
["PHEV_LP_LS"]
["PHEV_LP_LS"]
["PHEV_LP_LS"]
["PHEV_LP_LS"]
["PHEV_LP_LS"]
["PHEV_LP_LS"]
["PHEV_LP_LS"]
["PHEV_LP_LS"]
["PHEV_LP_LS"]
["PHEV_LP_LS"]
["PHEV_LP_LS"]
["PHEV_LP_LS"]
["PHEV_LP_LS"]
["PHEV_LP_LS"]
["PHEV_LP_LS"]
["PHEV_LP_LS"]
["PHEV_LP_LS"]
["PHEV_LP_LS"]
["PHEV_LP_LS"]
["PHEV_LP_LS"]
["PHEV_LP_LS"]
["PHEV_LP_LS"]
["PHEV_LP_LS"]
["PHEV_LP_LS"]
["PHEV_LP_LS"]
["PHEV_LP_LS"]
["PHEV_LP_LS"]
["PHEV_LP_LS"]
["PHEV_LP_LS"]
["PHEV_LP_LS"]
["PHEV_LP_LS"]
["PHEV_LP_LS"]
["PHEV_LP_LS"]
["PHEV_LP_LS"]
["PHEV_LP_LS"]
["PHEV_LP_LS"]
["PHEV_LP_LS"]
["PHEV_LP_LS"]
["PHEV_LP_LS"]
["PHEV_LP_LS"]
["PHEV_LP_LS"]
["PHEV_LP_LS"]
["PHEV_LP_LS"]
["PHEV_LP_LS"]
["PHEV_LP_LS"]
["PHEV_LP_LS"]
["PHEV_LP_LS"]
["PHEV_LP_LS"]
["PHEV_LP_LS"]
["PHEV_LP_LS"]
["PHEV_LP_LS"]
["PHEV_LP_LS"]
["PHEV_LP_LS"]
["LP_PHEV_EU"]
["LP_PHEV_EU"]
["LP_PHEV_EU"]
["PHEV_LP_LS"]
["PHEV_LP_LS"]
["PHEV_LP_LS"]
["PHEV_LP_LS"]
["PHEV_LP_LS"]
["PHEV_LP_LS"]
["PHEV_LP_LS"]
["PHEV_LP_LS"]
["Divers"]
[]
[]
["LP_PHEV_EU_v2"]

{"sheet":"Planification_Safety_N2","index":2,"n_rows":99,"n_cols":1,"rows_kept":99,"cut":false,"hidden":false,"merged":[]}
["Projet"]
["LP_PHEV_EU"]
["LP_PHEV_EU"]
["LP_PHEV_EU"]
["LP_PHEV_EU"]
["LP_PHEV_EU"]
["LP_PHEV_EU"]
["LP_PHEV_EU"]
["LP_PHEV_EU"]
["LP_PHEV_EU"]
["LP_PHEV_EU"]
["LP_PHEV_EU"]
["LP_PHEV_EU"]
["LP_PHEV_EU"]
["LP_PHEV_EU"]
["LP_PHEV_EU"]
["LP_PHEV_EU"]
["LP_PHEV_EU"]
["LP_PHEV_EU"]
["LP_PHEV_EU"]
["LP_PHEV_EU"]
["LP_PHEV_EU"]
["LP_PHEV_EU"]
["LP_PHEV_EU"]
["LP_PHEV_EU"]
["LP_PHEV_EU"]
["LP_PHEV_EU"]
["LP_PHEV_EU"]
["LP_PHEV_EU"]
["LP_PHEV_EU"]
["LP_PHEV_EU"]
["LP_PHEV_EU"]
["LP_PHEV_EU"]
["LP_PHEV_EU"]
["LP_PHEV_EU"]
["LP_PHEV_EU"]
["LP_PHEV_EU"]
["LP_PHEV_EU"]
["LP_PHEV_EU"]
["LP_PHEV_EU"]
["LP_PHEV_EU"]
["LP_PHEV_EU"]
["LP_PHEV_EU"]
["LP_PHEV_EU"]
["LP_PHEV_EU"]
["LP_PHEV_EU"]
["LP_PHEV_EU"]
["LP_PHEV_EU"]
["LP_PHEV_EU"]
["LP_PHEV_EU"]
["LP_PHEV_EU"]
["LP_PHEV_EU"]
["LP_PHEV_EU"]
["LP_PHEV_EU"]
["LP_PHEV_EU"]
["LP_PHEV_EU"]
["LP_PHEV_EU"]
["LP_PHEV_EU"]
["LP_PHEV_EU"]
["LP_PHEV_EU"]
["PHEV_LP_LS"]
["PHEV_LP_LS"]
["LP_PHEV_EU"]
["LP_PHEV_EU"]
["LP_PHEV_EU"]
["LP_PHEV_EU"]
["LP_PHEV_EU"]
["LP_PHEV_EU"]
["LP_PHEV_EU"]
["LP_PHEV_EU"]
["LP_PHEV_EU"]
["LP_PHEV_EU"]
["LP_PHEV_EU"]
["LP_PHEV_EU"]
["LP_PHEV_EU"]
["LP_PHEV_EU"]
["LP_PHEV_EU"]
["LP_PHEV_EU"]
["LP_PHEV_EU"]
["LP_PHEV_EU"]
["LP_PHEV_EU"]
["LP_PHEV_EU"]
["LP_PHEV_EU"]
["LP_PHEV_EU"]
["LP_PHEV_EU"]
["LP_PHEV_EU"]
["LP_PHEV_EU"]
["LP_PHEV_EU"]
["LP_PHEV_EU"]
["LP_PHEV_EU"]
["LP_PHEV_EU"]
["LP_PHEV_EU"]
["LP_PHEV_EU"]
["LP_PHEV_EU"]
["PHEV_LP_LS"]
["LP_PHEV_EU"]
["LP_PHEV_EU"]
["LP_PHEV_EU"]
["PHEV_LP_LS"]

{"sheet":"Planification_EOBD_matrices","index":3,"n_rows":55,"n_cols":41,"rows_kept":55,"cut":false,"hidden":false,"merged":[]}
["Projet"]
["LP_PHEV_EU",null,null,null,null,null,null,null,null,null,null,null,null,null,null,null,null,null,null,null,null,null,null,null,null,null,null,null,null,null,null,null,null,null,null,null,null,null,null,null,1111]
["LP_PHEV_EU",null,null,null,null,null,null,null,null,null,null,null,null,null,null,null,null,null,null,null,null,null,null,null,null,null,null,null,null,null,null,null,null,null,null,null,null,null,null,null,2222]
["LP_PHEV_EU",null,null,null,null,null,null,null,null,null,null,null,null,null,null,null,null,null,null,null,null,null,null,null,null,null,null,null,null,null,null,null,null,null,null,null,null,null,null,null,3333]
["LP_PHEV_EU",null,null,null,null,null,null,null,null,null,null,null,null,null,null,null,null,null,null,null,null,null,null,null,null,null,null,null,null,null,null,null,null,null,null,null,null,null,null,null,4444]
["PHEV_LP_LS_MATRICES"]
["PHEV_LP_LS_MATRICES"]
["PHEV_LP_LS_MATRICES"]
["PHEV_LP_LS_MATRICES"]
["PHEV_LP_LS_MATRICES"]
["PHEV_LP_LS_MATRICES"]
["PHEV_LP_LS_MATRICES"]
["PHEV_LP_LS_MATRICES"]
["PHEV_LP_LS_MATRICES"]
["PHEV_LP_LS_MATRICES"]
["PHEV_LP_LS_MATRICES"]
["PHEV_LP_LS_MATRICES"]
["PHEV_LP_LS_MATRICES"]
["PHEV_LP_LS_MATRICES"]
["PHEV_LP_LS_MATRICES"]
["PHEV_LP_LS_MATRICES"]
["PHEV_LP_LS_MATRICES"]
["PHEV_LP_LS_MATRICES"]
["PHEV_LP_LS_MATRICES"]
["PHEV_LP_LS_MATRICES"]
["PHEV_LP_LS_MATRICES"]
["PHEV_LP_LS_MATRICES"]
["PHEV_LP_LS_MATRICES"]
["PHEV_LP_LS_MATRICES"]
["PHEV_LP_LS_MATRICES"]
["PHEV_LP_LS_MATRICES"]
["PHEV_LP_LS_MATRICES"]
["PHEV_LP_LS_MATRICES"]
["PHEV_LP_LS_MATRICES"]
["PHEV_LP_LS_MATRICES"]
["PHEV_LP_LS_MATRICES"]
["PHEV_LP_LS_MATRICES"]
["PHEV_LP_LS_MATRICES"]
["PHEV_LP_LS_MATRICES"]
["PHEV_LP_LS_MATRICES"]
["PHEV_LP_LS_MATRICES"]
["PHEV_LP_LS_MATRICES"]
["PHEV_LP_LS_MATRICES"]
["PHEV_LP_LS_MATRICES"]
["PHEV_LP_LS_MATRICES"]
["PHEV_LP_LS_MATRICES"]
["PHEV_LP_LS_MATRICES"]
["PHEV_LP_LS_MATRICES"]
["PHEV_LP_LS_MATRICES"]
["PHEV_LP_LS_MATRICES"]
["PHEV_LP_LS_MATRICES"]
["PHEV_LP_LS_MATRICES"]
["LP_PHEV_EU"]
[]
["LP_PHEV_EU"]

{"sheet":"Planification_figeages","index":4,"n_rows":5,"n_cols":1,"rows_kept":5,"cut":false,"hidden":false,"merged":[]}
["Projet"]
["LP_PHEV_EU"]
["LP_PHEV_EU"]
["LP_PHEV_EU"]
["LP_PHEV_EU"]

{"sheet":"Planification_Safety_N1_diagt","index":5,"n_rows":449,"n_cols":1,"rows_kept":449,"cut":false,"hidden":false,"merged":[]}
["Projet"]
["LP_PHEV_EU"]
["LP_PHEV_EU"]
["LP_PHEV_EU"]
["LP_PHEV_EU"]
["LP_PHEV_EU"]
["LP_PHEV_EU"]
["LP_PHEV_EU"]
["LP_PHEV_EU"]
["LP_PHEV_EU"]
["LP_PHEV_EU"]
["LP_PHEV_EU"]
["LP_PHEV_EU"]
["LP_PHEV_EU"]
["LP_PHEV_EU"]
["LP_PHEV_EU"]
["LP_PHEV_EU"]
["LP_PHEV_EU"]
["LP_PHEV_EU"]
["LP_PHEV_EU"]
["LP_PHEV_EU"]
["LP_PHEV_EU"]
["LP_PHEV_EU"]
["LP_PHEV_EU"]
["LP_PHEV_EU"]
["LP_PHEV_EU"]
["LP_PHEV_EU"]
["LP_PHEV_EU"]
["LP_PHEV_EU"]
["LP_PHEV_EU"]
["LP_PHEV_EU"]
["LP_PHEV_EU"]
["LP_PHEV_EU"]
["LP_PHEV_EU"]
["LP_PHEV_EU"]
["LP_PHEV_EU"]
["LP_PHEV_EU"]
["LP_PHEV_EU"]
["LP_PHEV_EU"]
["LP_PHEV_EU"]
["LP_PHEV_EU"]
["LP_PHEV_EU"]
["LP_PHEV_EU"]
["LP_PHEV_EU"]
["LP_PHEV_EU"]
["LP_PHEV_EU"]
["LP_PHEV_EU"]
["LP_PHEV_EU"]
["LP_PHEV_EU"]
["LP_PHEV_EU"]
["LP_PHEV_EU"]
["LP_PHEV_EU"]
["LP_PHEV_EU"]
["LP_PHEV_EU"]
["LP_PHEV_EU"]
["LP_PHEV_EU"]
["LP_PHEV_EU"]
["LP_PHEV_EU"]
["LP_PHEV_EU"]
["LP_PHEV_EU"]
["LP_PHEV_EU"]
["LP_PHEV_EU"]
["LP_PHEV_EU"]
["LP_PHEV_EU"]
["LP_PHEV_EU"]
["LP_PHEV_EU"]
["LP_PHEV_EU"]
["LP_PHEV_EU"]
["LP_PHEV_EU"]
["LP_PHEV_EU"]
["LP_PHEV_EU"]
["LP_PHEV_EU"]
["LP_PHEV_EU"]
["LP_PHEV_EU"]
["LP_PHEV_EU"]
["LP_PHEV_EU"]
["LP_PHEV_EU"]
["LP_PHEV_EU"]
["LP_PHEV_EU"]
["LP_PHEV_EU"]
["LP_PHEV_EU"]
["LP_PHEV_EU"]
["LP_PHEV_EU"]
["LP_PHEV_EU"]
["LP_PHEV_EU"]
["LP_PHEV_EU"]
["LP_PHEV_EU"]
["LP_PHEV_EU"]
["LP_PHEV_EU"]
["LP_PHEV_EU"]
["LP_PHEV_EU"]
["LP_PHEV_EU"]
["LP_PHEV_EU"]
["LP_PHEV_EU"]
["LP_PHEV_EU"]
["LP_PHEV_EU"]
["LP_PHEV_EU"]
["LP_PHEV_EU"]
["LP_PHEV_EU"]
["LP_PHEV_EU"]
["LP_PHEV_EU"]
["LP_PHEV_EU"]
["LP_PHEV_EU"]
["LP_PHEV_EU"]
["LP_PHEV_EU"]
["LP_PHEV_EU"]
["LP_PHEV_EU"]
["LP_PHEV_EU"]
["LP_PHEV_EU"]
["LP_PHEV_EU"]
["LP_PHEV_EU"]
["LP_PHEV_EU"]
["LP_PHEV_EU"]
["LP_PHEV_EU"]
["LP_PHEV_EU"]
["LP_PHEV_EU"]
["LP_PHEV_EU"]
["LP_PHEV_EU"]
["LP_PHEV_EU"]
["LP_PHEV_EU"]
["LP_PHEV_EU"]
["LP_PHEV_EU"]
["LP_PHEV_EU"]
["LP_PHEV_EU"]
["LP_PHEV_EU"]
["LP_PHEV_EU"]
["LP_PHEV_EU"]
["LP_PHEV_EU"]
["LP_PHEV_EU"]
["LP_PHEV_EU"]
["LP_PHEV_EU"]
["LP_PHEV_EU"]
["LP_PHEV_EU"]
["LP_PHEV_EU"]
["LP_PHEV_EU"]
["LP_PHEV_EU"]
["LP_PHEV_EU"]
["LP_PHEV_EU"]
["LP_PHEV_EU"]
["LP_PHEV_EU"]
["LP_PHEV_EU"]
["LP_PHEV_EU"]
["LP_PHEV_EU"]
["LP_PHEV_EU"]
["LP_PHEV_EU"]
["LP_PHEV_EU"]
["LP_PHEV_EU"]
["LP_PHEV_EU"]
["LP_PHEV_EU"]
["LP_PHEV_EU"]
["LP_PHEV_EU"]
["LP_PHEV_EU"]
["LP_PHEV_EU"]
["LP_PHEV_EU"]
["LP_PHEV_EU"]
["LP_PHEV_EU"]
["LP_PHEV_EU"]
["LP_PHEV_EU"]
["LP_PHEV_EU"]
["LP_PHEV_EU"]
["LP_PHEV_EU"]
["LP_PHEV_EU"]
["LP_PHEV_EU"]
["LP_PHEV_EU"]
["LP_PHEV_EU"]
["LP_PHEV_EU"]
["LP_PHEV_EU"]
["LP_PHEV_EU"]
["LP_PHEV_EU"]
["LP_PHEV_EU"]
["LP_PHEV_EU"]
["LP_PHEV_EU"]
["LP_PHEV_EU"]
["LP_PHEV_EU"]
["LP_PHEV_EU"]
["LP_PHEV_EU"]
["LP_PHEV_EU"]
["LP_PHEV_EU"]
["LP_PHEV_EU"]
["LP_PHEV_EU"]
["LP_PHEV_EU"]
["LP_PHEV_EU"]
["LP_PHEV_EU"]
["LP_PHEV_EU"]
["LP_PHEV_EU"]
["LP_PHEV_EU"]
["LP_PHEV_EU"]
["LP_PHEV_EU"]
["LP_PHEV_EU"]
["LP_PHEV_EU"]
["LP_PHEV_EU"]
["LP_PHEV_EU"]
["LP_PHEV_EU"]
["LP_PHEV_EU"]
["LP_PHEV_EU"]
["LP_PHEV_EU"]
["LP_PHEV_EU"]
["LP_PHEV_EU"]
["LP_PHEV_EU"]
["LP_PHEV_EU"]
["LP_PHEV_EU"]
["LP_PHEV_EU"]
["LP_PHEV_EU"]
["LP_PHEV_EU"]
["LP_PHEV_EU"]
["LP_PHEV_EU"]
["LP_PHEV_EU"]
["LP_PHEV_EU"]
["LP_PHEV_EU"]
["LP_PHEV_EU"]
["LP_PHEV_EU"]
["LP_PHEV_EU"]
["LP_PHEV_EU"]
["LP_PHEV_EU"]
["LP_PHEV_EU"]
["LP_PHEV_EU"]
["LP_PHEV_EU"]
["LP_PHEV_EU"]
["LP_PHEV_EU"]
["LP_PHEV_EU"]
["LP_PHEV_EU"]
["LP_PHEV_EU"]
["LP_PHEV_EU"]
["LP_PHEV_EU"]
["LP_PHEV_EU"]
["LP_PHEV_EU"]
["LP_PHEV_EU"]
["LP_PHEV_EU"]
["LP_PHEV_EU"]
["LP_PHEV_EU"]
["LP_PHEV_EU"]
["LP_PHEV_EU"]
["LP_PHEV_EU"]
["LP_PHEV_EU"]
["LP_PHEV_EU"]
["LP_PHEV_EU"]
["LP_PHEV_EU"]
["LP_PHEV_EU"]
["LP_PHEV_EU"]
["LP_PHEV_EU"]
["LP_PHEV_EU"]
["LP_PHEV_EU"]
["LP_PHEV_EU"]
["LP_PHEV_EU"]
["LP_PHEV_EU"]
["LP_PHEV_EU"]
["LP_PHEV_EU"]
["LP_PHEV_EU"]
["LP_PHEV_EU"]
["LP_PHEV_EU"]
["LP_PHEV_EU"]
["LP_PHEV_EU"]
["LP_PHEV_EU"]
["LP_PHEV_EU"]
["LP_PHEV_EU"]
["LP_PHEV_EU"]
["LP_PHEV_EU"]
["LP_PHEV_EU"]
["LP_PHEV_EU"]
["LP_PHEV_EU"]
["LP_PHEV_EU"]
["LP_PHEV_EU"]
["LP_PHEV_EU"]
["LP_PHEV_EU"]
["LP_PHEV_EU"]
["LP_PHEV_EU"]
["LP_PHEV_EU"]
["LP_PHEV_EU"]
["LP_PHEV_EU"]
["LP_PHEV_EU"]
["LP_PHEV_EU"]
["LP_PHEV_EU"]
["LP_PHEV_EU"]
["LP_PHEV_EU"]
["LP_PHEV_EU"]
["LP_PHEV_EU"]
["LP_PHEV_EU"]
["LP_PHEV_EU"]
["LP_PHEV_EU"]
["LP_PHEV_EU"]
["LP_PHEV_EU"]
["LP_PHEV_EU"]
["LP_PHEV_EU"]
["LP_PHEV_EU"]
["LP_PHEV_EU"]
["LP_PHEV_EU"]
["LP_PHEV_EU"]
["LP_PHEV_EU"]
["LP_PHEV_EU"]
["LP_PHEV_EU"]
["LP_PHEV_EU"]
["LP_PHEV_EU"]
["LP_PHEV_EU"]
["LP_PHEV_EU"]
["LP_PHEV_EU"]
["LP_PHEV_EU"]
["LP_PHEV_EU"]
["LP_PHEV_EU"]
["LP_PHEV_EU"]
["LP_PHEV_EU"]
["LP_PHEV_EU"]
["LP_PHEV_EU"]
["LP_PHEV_EU"]
["LP_PHEV_EU"]
["LP_PHEV_EU"]
["LP_PHEV_EU"]
["LP_PHEV_EU"]
["LP_PHEV_EU"]
["LP_PHEV_EU"]
["LP_PHEV_EU"]
["LP_PHEV_EU"]
["LP_PHEV_EU"]
["LP_PHEV_EU"]
["LP_PHEV_EU"]
["LP_PHEV_EU"]
["LP_PHEV_EU"]
["LP_PHEV_EU"]
["LP_PHEV_EU"]
["LP_PHEV_EU"]
["LP_PHEV_EU"]
["LP_PHEV_EU"]
["LP_PHEV_EU"]
["LP_PHEV_EU"]
["LP_PHEV_EU"]
["LP_PHEV_EU"]
["LP_PHEV_EU"]
["LP_PHEV_EU"]
["LP_PHEV_EU"]
["LP_PHEV_EU"]
["LP_PHEV_EU"]
["LP_PHEV_EU"]
["LP_PHEV_EU"]
["LP_PHEV_EU"]
["LP_PHEV_EU"]
["LP_PHEV_EU"]
["LP_PHEV_EU"]
["LP_PHEV_EU"]
["LP_PHEV_EU"]
["LP_PHEV_EU"]
["LP_PHEV_EU"]
["LP_PHEV_EU"]
["LP_PHEV_EU"]
["LP_PHEV_EU"]
["LP_PHEV_EU"]
["LP_PHEV_EU"]
["LP_PHEV_EU"]
["LP_PHEV_EU"]
["LP_PHEV_EU"]
["LP_PHEV_EU"]
["LP_PHEV_EU"]
["LP_PHEV_EU"]
["LP_PHEV_EU"]
["LP_PHEV_EU"]
["LP_PHEV_EU"]
["LP_PHEV_EU"]
["LP_PHEV_EU"]
["LP_PHEV_EU"]
["LP_PHEV_EU"]
["LP_PHEV_EU"]
["LP_PHEV_EU"]
["LP_PHEV_EU"]
["LP_PHEV_EU"]
["LP_PHEV_EU"]
["LP_PHEV_EU"]
["LP_PHEV_EU"]
["LP_PHEV_EU"]
["LP_PHEV_EU"]
["LP_PHEV_EU"]
["LP_PHEV_EU"]
["LP_PHEV_EU"]
["LP_PHEV_EU"]
["LP_PHEV_EU"]
["LP_PHEV_EU"]
["LP_PHEV_EU"]
["LP_PHEV_EU"]
["LP_PHEV_EU"]
["LP_PHEV_EU"]
["LP_PHEV_EU"]
["LP_PHEV_EU"]
["LP_PHEV_EU"]
["LP_PHEV_EU"]
["LP_PHEV_EU"]
["LP_PHEV_EU"]
["LP_PHEV_EU"]
["LP_PHEV_EU"]
["LP_PHEV_EU"]
["LP_PHEV_EU"]
["LP_PHEV_EU"]
["LP_PHEV_EU"]
["LP_PHEV_EU"]
["LP_PHEV_EU"]
["LP_PHEV_EU"]
["LP_PHEV_EU"]
["LP_PHEV_EU"]
["LP_PHEV_EU"]
["LP_PHEV_EU"]
["LP_PHEV_EU"]
["LP_PHEV_EU"]
["LP_PHEV_EU"]
["LP_PHEV_EU"]
["LP_PHEV_EU"]
["LP_PHEV_EU"]
["LP_PHEV_EU"]
["LP_PHEV_EU"]
["LP_PHEV_EU"]
["LP_PHEV_EU"]
["LP_PHEV_EU"]
["LP_PHEV_EU"]
["LP_PHEV_EU"]
["LP_PHEV_EU"]
["LP_PHEV_EU"]
["LP_PHEV_EU"]
["LP_PHEV_EU"]
["LP_PHEV_EU"]
["LP_PHEV_EU"]
["LP_PHEV_EU"]
["LP_PHEV_EU"]
["LP_PHEV_EU"]
["LP_PHEV_EU"]
["LP_PHEV_EU"]
["LP_PHEV_EU"]
["LP_PHEV_EU"]
["LP_PHEV_EU"]
["LP_PHEV_EU"]
["LP_PHEV_EU"]
["LP_PHEV_EU"]
["LP_PHEV_EU"]
["LP_PHEV_EU"]
["LP_PHEV_EU"]
["LP_PHEV_EU"]
["LP_PHEV_EU"]
["LP_PHEV_EU"]
["LP_PHEV_EU"]
["LP_PHEV_EU"]
["LP_PHEV_EU"]
["LP_PHEV_EU"]
["LP_PHEV_EU"]
["LP_PHEV_EU"]
["LP_PHEV_EU"]
["LP_PHEV_EU"]
["LP_PHEV_EU"]
["LP_PHEV_EU"]
["LP_PHEV_EU"]
["LP_PHEV_EU"]
["LP_PHEV_EU"]
["LP_PHEV_EU"]
["PHEV_LP_LS"]
["LP_PHEV_EU"]
["LP_PHEV_EU"]

{"sheet":"ESSAI_QPDC","index":6,"n_rows":749,"n_cols":26,"rows_kept":749,"cut":false,"hidden":false,"merged":[]}
[{"$f":"NEW_VB_config!Q2","v":"LP_PHEV_EU"},"Q","C","D","P",null,null,"Projet","Appli","Prestation","Resp","Macro activité","Activité"]
[null,{"$f":"W2+W6+W10+W14+W18+W22+W26+W30+W34+W38+W42","v":1},{"$f":"X2+X6+X10+X14+X18+X22+X26+X30+X34+X38+X42","v":1},1,1,null,null,null,null,null,null,null,null,null,null,null,null,null,null,"P1","Feuil1","rouge",1,1,1,1]
[null,{"$f":"W3+W7+W11+W15+W19+W23+W27+W31+W35+W39+W43","v":1},1,1,1,null,null,null,null,null,null,null,null,null,null,null,null,null,null,null,null,"noire",1,1,1,1]
[null,1,1,1,1,null,null,null,null,null,null,null,null,null,null,null,null,null,null,null,null,"orange",1,1,1,1]
[null,1,1,1,1,null,null,null,null,null,null,null,null,null,null,null,null,null,null,null,null,"vert",1,1,1,1]
[null,null,null,null,null,null,null,null,null,null,null,null,null,null,null,null,null,null,null,null,"feuil2","rouge"]
[{"$f":"NEW_VB_config!Q3","v":"LP_PHEV_EU_v2"},"Q","C","D","P",null,null,null,null,null,null,null,null,null,null,null,null,null,null,null,null,"noire"]
[null,{"$f":"W46+W50+W54+W58+W62+W66+W70+W74+W78+W82+W86","v":0},{"$f":"X46+X50+X54+X58+X62+X66+X70+X74+X78+X82+X86","v":0},0,0,null,null,null,null,null,null,null,null,null,null,null,null,null,null,null,null,"orange"]
[null,{"$f":"W47+W51+W55+W59+W63+W67+W71+W75+W79+W83+W87","v":0},0,0,0,null,null,null,null,null,null,null,null,null,null,null,null,null,null,null,null,"vert"]
[null,0,0,0,0,null,null,null,null,null,null,null,null,null,null,null,null,null,null,null,"feuil3","rouge"]
[null,0,0,0,0,null,null,null,null,null,null,null,null,null,null,null,null,null,null,null,null,"noire"]
[null,null,null,null,null,null,null,null,null,null,null,null,null,null,null,null,null,null,null,null,null,"orange"]
[{"$f":"NEW_VB_config!Q4","v":"LS_PHEV_China6"},"Q","C","D","P",null,null,null,null,null,null,null,null,null,null,null,null,null,null,null,null,"vert"]
[null,{"$f":"W90+W94+W98+W102+W106+W110+W114+W118+W122+W126+W130","v":0},{"$f":"X90+X94+X98+X102+X106+X110+X114+X118+X122+X126+X130","v":0},0,0,null,null,null,null,null,null,null,null,null,null,null,null,null,null,null,"feuil4","rouge"]
[null,{"$f":"W91+W95+W99+W103+W107+W111+W115+W119+W123+W127+W131","v":0},0,0,0,null,null,null,null,null,null,null,null,null,null,null,null,null,null,null,null,"noire"]
[null,0,0,0,0,null,null,null,null,null,null,null,null,null,null,null,null,null,null,null,null,"orange"]
[null,0,0,0,0,null,null,null,null,null,null,null,null,null,null,null,null,null,null,null,null,"vert"]
[null,null,null,null,null,null,null,null,null,null,null,null,null,null,null,null,null,null,null,null,"feuil5","rouge"]
[{"$f":"NEW_VB_config!Q5","v":"LS_PHEV_EU"},"Q","C","D","P",null,null,null,null,null,null,null,null,null,null,null,null,null,null,null,null,"noire"]
[null,{"$f":"W134+W138+W142+W146+W150+W154+W158+W162+W166+W170+W174","v":0},{"$f":"X134+X138+X142+X146+X150+X154+X158+X162+X166+X170+X174","v":0},0,0,null,null,null,null,null,null,null,null,null,null,null,null,null,null,null,null,"orange"]
[null,{"$f":"W135+W139+W143+W147+W151+W155+W159+W163+W167+W171+W175","v":0},0,0,0,null,null,null,null,null,null,null,null,null,null,null,null,null,null,null,null,"vert"]
[null,0,0,0,0,null,null,null,null,null,null,null,null,null,null,null,null,null,null,null,"feuil6","rouge"]
[null,0,0,0,0,null,null,null,null,null,null,null,null,null,null,null,null,null,null,null,null,"noire"]
[null,null,null,null,null,null,null,null,null,null,null,null,null,null,null,null,null,null,null,null,null,"orange"]
[{"$f":"[5]NEW_VB_config!Q6","v":"LS_PHEV_EIC"},"Q","C","D","P",null,null,null,null,null,null,null,null,null,null,null,null,null,null,null,null,"vert"]
[null,{"$f":"W178+W182+W186+W190+W194+W198+W202+W206+W210+W214+W218","v":0},{"$f":"X178+X182+X186+X190+X194+X198+X202+X206+X210+X214+X218","v":0},0,0,null,null,null,null,null,null,null,null,null,null,null,null,null,null,null,"feuil7","rouge"]
[null,{"$f":"W179+W183+W187+W191+W195+W199+W203+W207+W211+W215+W219","v":0},0,0,0,null,null,null,null,null,null,null,null,null,null,null,null,null,null,null,null,"noire"]
[null,0,0,0,0,null,null,null,null,null,null,null,null,null,null,null,null,null,null,null,null,"orange"]
[null,0,0,0,0,null,null,null,null,null,null,null,null,null,null,null,null,null,null,null,null,"vert"]
[null,null,null,null,null,null,null,null,null,null,null,null,null,null,null,null,null,null,null,null,"feuil8","rouge"]
[{"$f":"NEW_VB_config!Q7","v":"Transversal"},"Q","C","D","P",null,null,null,null,null,null,null,null,null,null,null,null,null,null,null,null,"noire"]
[null,{"$f":"W222+W226+W230+W234+W238+W242+W246+W250+W254+W258+W262","v":0},{"$f":"X222+X226+X230+X234+X238+X242+X246+X250+X254+X258+X262","v":0},0,0,null,null,null,null,null,null,null,null,null,null,null,null,null,null,null,null,"orange"]
[null,{"$f":"W223+W227+W231+W235+W239+W243+W247+W251+W255+W259+W263","v":0},0,0,0,null,null,null,null,null,null,null,null,null,null,null,null,null,null,null,null,"vert"]
[null,0,0,0,0,null,null,null,null,null,null,null,null,null,null,null,null,null,null,null,"feuil9","rouge"]
[null,0,0,0,0,null,null,null,null,null,null,null,null,null,null,null,null,null,null,null,null,"noire"]
[null,null,null,null,null,null,null,null,null,null,null,null,null,null,null,null,null,null,null,null,null,"orange"]
[{"$f":"NEW_VB_config!Q8","v":"Divers"},"Q","C","D","P",null,null,null,null,null,null,null,null,null,null,null,null,null,null,null,null,"vert"]
[null,{"$f":"W266+W270+W274+W278+W282+W286+W290+W294+W298+W302+W306","v":0},0,0,0,null,null,null,null,null,null,null,null,null,null,null,null,null,null,null,"feuil10","rouge"]
[null,0,0,0,0,null,null,null,null,null,null,null,null,null,null,null,null,null,null,null,null,"noire"]
[null,0,0,0,0,null,null,null,null,null,null,null,null,null,null,null,null,null,null,null,null,"orange"]
[null,0,0,0,0,null,null,null,null,null,null,null,null,null,null,null,null,null,null,null,null,"vert"]
[null,null,null,null,null,null,null,null,null,null,null,null,null,null,null,null,null,null,null,null,"feuil11","rouge"]
[{"$f":"NEW_VB_config!Q9","v":"PHEV_LP_LS"},"Q","C","D","P",null,null,null,null,null,null,null,null,null,null,null,null,null,null,null,null,"noire"]
[null,{"$f":"W310+W314+W318+W322+W326+W330+W334+W338+W342+W346+W350","v":0},{"$f":"X310+X314+X318+X322+X326+X330+X334+X338+X342+X346+X350","v":0},0,0,null,null,null,null,null,null,null,null,null,null,null,null,null,null,null,null,"orange"]
[null,{"$f":"W311+W315+W319+W323+W327+W331+W335+W339+W343+W347+W351","v":0},0,0,0,null,null,null,null,null,null,null,null,null,null,null,null,null,null,null,null,"vert"]
[null,0,0,0,0,null,null,null,null,null,null,null,null,null,null,null,null,null,null,"p2","Feuil1","rouge"]
[null,0,0,0,0,null,null,null,null,null,null,null,null,null,null,null,null,null,null,null,null,"noire"]
[null,null,null,null,null,null,null,null,null,null,null,null,null,null,null,null,null,null,null,null,null,"orange"]
[{"$f":"NEW_VB_config!Q10","v":"PHEV_LP_LS_MATRICES"},"Q","C","D","P",null,null,null,null,null,null,null,null,null,null,null,null,null,null,null,null,"vert"]
[null,{"$f":"W354+W358+W362+W366+W370+W374+W378+W382+W386+W390+W394","v":0},{"$f":"X354+X358+X362+X366+X370+X374+X378+X382+X386+X390+X394","v":0},0,0,null,null,null,null,null,null,null,null,null,null,null,null,null,null,null,"feuil2","rouge"]
[null,{"$f":"W355+W359+W363+W367+W371+W375+W379+W383+W387+W391+W395","v":0},0,0,0,null,null,null,null,null,null,null,null,null,null,null,null,null,null,null,null,"noire"]
[null,0,0,0,0,null,null,null,null,null,null,null,null,null,null,null,null,null,null,null,null,"orange"]
[null,0,0,0,0,null,null,null,null,null,null,null,null,null,null,null,null,null,null,null,null,"vert"]
[null,null,null,null,null,null,null,null,null,null,null,null,null,null,null,null,null,null,null,null,"feuil3","rouge"]
[{"$f":"NEW_VB_config!Q11","v":"SUPPRIME"},"Q","C","D","P",null,null,null,null,null,null,null,null,null,null,null,null,null,null,null,null,"noire"]
[null,{"$f":"W398+W402+W406+W410+W414+W418+W422+W426+W430+W434+W438","v":0},{"$f":"X398+X402+X406+X410+X414+X418+X422+X426+X430+X434+X438","v":0},0,0,null,null,null,null,null,null,null,null,null,null,null,null,null,null,null,null,"orange"]
[null,{"$f":"W399+W403+W407+W411+W415+W419+W423+W427+W431+W435+W439","v":0},0,0,0,null,null,null,null,null,null,null,null,null,null,null,null,null,null,null,null,"vert"]
[null,0,0,0,0,null,null,null,null,null,null,null,null,null,null,null,null,null,null,null,"feuil4","rouge"]
[null,0,0,0,0,null,null,null,null,null,null,null,null,null,null,null,null,null,null,null,null,"noire"]
[null,null,null,null,null,null,null,null,null,null,null,null,null,null,null,null,null,null,null,null,null,"orange"]
[{"$f":"NEW_VB_config!Q12","v":"ls_PHEV_4x2"},"Q","C","D","P",null,null,null,null,null,null,null,null,null,null,null,null,null,null,null,null,"vert"]
[null,{"$f":"W442+W446+W450+W454+W458+W462+W466+W470+W474+W478+W482","v":0},{"$f":"X442+X446+X450+X454+X458+X462+X466+X470+X474+X478+X482","v":0},0,0,null,null,null,null,null,null,null,null,null,null,null,null,null,null,null,"feuil5","rouge"]
[null,{"$f":"W443+W447+W451+W455+W459+W463+W467+W471+W475+W479+W483","v":0},0,0,0,null,null,null,null,null,null,null,null,null,null,null,null,null,null,null,null,"noire"]
[null,0,0,0,0,null,null,null,null,null,null,null,null,null,null,null,null,null,null,null,null,"orange"]
[null,0,0,0,0,null,null,null,null,null,null,null,null,null,null,null,null,null,null,null,null,"vert"]
[null,null,null,null,null,null,null,null,null,null,null,null,null,null,null,null,null,null,null,null,"feuil6","rouge"]
[{"$f":"NEW_VB_config!Q13","v":"a"},"Q","C","D","P",12,null,null,null,null,null,null,null,null,null,null,null,null,null,null,null,"noire"]
[null,{"$f":"W486+W490+W494+W498+W502+W506+W510+W514+W518+W522+W526","v":0},{"$f":"X486+X490+X494+X498+X502+X506+X510+X514+X518+X522+X526","v":0},0,0,null,null,null,null,null,null,null,null,null,null,null,null,null,null,null,null,"orange"]
[null,{"$f":"W487+W491+W495+W499+W503+W507+W511+W515+W519+W523+W527","v":0},0,0,0,null,null,null,null,null,null,null,null,null,null,null,null,null,null,null,null,"vert"]
[null,0,0,0,0,null,null,null,null,null,null,null,null,null,null,null,null,null,null,null,"feuil7","rouge"]
[null,0,0,0,0,null,null,null,null,null,null,null,null,null,null,null,null,null,null,null,null,"noire"]
[null,null,null,null,null,null,null,null,null,null,null,null,null,null,null,null,null,null,null,null,null,"orange"]
[{"$f":"NEW_VB_config!Q14","v":"q"},"Q","C","D","P",null,null,null,null,null,null,null,null,null,null,null,null,null,null,null,null,"vert"]
[null,{"$f":"W534+W538+W542+W546+W550+W554+W558+W562+W566+W570","v":0},{"$f":"X534+X538+X542+X546+X550+X554+X558+X562+X566+X570","v":0},0,0,null,null,null,null,null,null,null,null,null,null,null,null,null,null,null,"feuil8","rouge"]
[null,{"$f":"W535+W539+W543+W547+W551+W555+W559+W563+W567+W571","v":0},0,0,0,null,null,null,null,null,null,null,null,null,null,null,null,null,null,null,null,"noire"]
[null,0,0,0,0,null,null,null,null,null,null,null,null,null,null,null,null,null,null,null,null,"orange"]
[null,0,0,0,0,null,null,null,null,null,null,null,null,null,null,null,null,null,null,null,null,"vert"]
[null,null,null,null,null,null,null,null,null,null,null,null,null,null,null,null,null,null,null,null,"feuil9","rouge"]
[{"$f":"NEW_VB_config!Q15","v":"SUPPRIME"},"Q","C","D","P",null,null,null,null,null,null,null,null,null,null,null,null,null,null,null,null,"noire"]
[null,{"$f":"W574+W578+W582+W586+W590+W594+W598+W602+W606+W610+W614","v":0},{"$f":"X574+X578+X582+X586+X590+X594+X598+X602+X606+X610+X614","v":0},0,0,null,null,null,null,null,null,null,null,null,null,null,null,null,null,null,null,"orange"]
[null,{"$f":"W575+W579+W583+W587+W591+W595+W599+W603+W607+W611+W615","v":0},0,0,0,null,null,null,null,null,null,null,null,null,null,null,null,null,null,null,null,"vert"]
[null,0,0,0,0,null,null,null,null,null,null,null,null,null,null,null,null,null,null,null,"feuil10","rouge"]
[null,0,0,0,0,null,null,null,null,null,null,null,null,null,null,null,null,null,null,null,null,"noire"]
[null,null,null,null,null,null,null,null,null,null,null,null,null,null,null,null,null,null,null,null,null,"orange"]
[{"$f":"NEW_VB_config!Q16","v":"Divers"},"Q","C","D","P",15,null,null,null,null,null,null,null,null,null,null,null,null,null,null,null,"vert"]
[null,{"$f":"W618+W622+W626+W630+W634+W638+W642+W646+W650+W654+W658","v":0},{"$f":"X618+X622+X626+X630+X634+X638+X642+X646+X650+X654+X658","v":0},0,0,null,null,null,null,null,null,null,null,null,null,null,null,null,null,null,"feuil11","rouge"]
[null,{"$f":"W619+W623+W627+W631+W635+W639+W643+W647+W651+W655+W659","v":0},0,0,0,null,null,null,null,null,null,null,null,null,null,null,null,null,null,null,null,"noire"]
[null,0,0,0,0,null,null,null,null,null,null,null,null,null,null,null,null,null,null,null,null,"orange"]
[null,0,0,0,0,null,null,null,null,null,null,null,null,null,null,null,null,null,null,null,null,"vert"]
[null,null,null,null,null,null,null,null,null,null,null,null,null,null,null,null,null,null,null,"p3","Feuil1","rouge"]
[{"$f":"NEW_VB_config!Q17","v":"e"},"Q","C","D","P",null,null,null,null,null,null,null,null,null,null,null,null,null,null,null,null,"noire"]
[null,{"$f":"W662+W666+W670+W674+W678+W682+W686+W690+W694+W698+W702","v":0},{"$f":"X662+X666+X670+X674+X678+X682+X686+X690+X694+X698+X702","v":0},0,0,null,null,null,null,null,null,null,null,null,null,null,null,null,null,null,null,"orange"]
[null,{"$f":"W663+W667+W671+W675+W679+W683+W687+W691+W695+W699+W703","v":0},0,0,0,null,null,null,null,null,null,null,null,null,null,null,null,null,null,null,null,"vert"]
[null,0,0,0,0,null,null,null,null,null,null,null,null,null,null,null,null,null,null,null,"feuil2","rouge"]
[null,0,0,0,0,null,null,null,null,null,null,null,null,null,null,null,null,null,null,null,null,"noire"]
[null,null,null,null,null,null,null,null,null,null,null,null,null,null,null,null,null,null,null,null,null,"orange"]
[{"$f":"NEW_VB_config!Q18","v":"r"},"Q","C","D","P",null,null,null,null,null,null,null,null,null,null,null,null,null,null,null,null,"vert"]
[null,{"$f":"W706+W710+W714+W718+W722+W726+W730+W734+W738+W742+W746","v":0},{"$f":"X706+X710+X714+X718+X722+X726+X730+X734+X738+X742+X746","v":0},0,0,null,null,null,null,null,null,null,null,null,null,null,null,null,null,null,"feuil3","rouge"]
[null,{"$f":"W707+W711+W715+W719+W723+W727+W731+W735+W739+W743+W747","v":0},0,0,0,null,null,null,null,null,null,null,null,null,null,null,null,null,null,null,null,"noire"]
[null,0,0,0,0,null,null,null,null,null,null,null,null,null,null,null,null,null,null,null,null,"orange"]
[null,0,0,0,0,null,null,null,null,null,null,null,null,null,null,null,null,null,null,null,null,"vert"]
[null,null,null,null,null,null,null,null,null,null,null,null,null,null,null,null,null,null,null,null,"feuil4","rouge"]
[null,null,null,null,null,null,null,null,null,null,null,null,null,null,null,null,null,null,null,null,null,"noire"]
[null,null,null,null,null,null,null,null,null,null,null,null,null,null,null,null,null,null,null,null,null,"orange"]
[null,null,null,null,null,null,null,null,null,null,null,null,null,null,null,null,null,null,null,null,null,"vert"]
[null,null,null,null,null,null,null,null,null,null,null,null,null,null,null,null,null,null,null,null,"feuil5","rouge"]
[null,null,null,null,null,null,null,null,null,null,null,null,null,null,null,null,null,null,null,null,null,"noire"]
[null,null,null,null,null,null,null,null,null,null,null,null,null,null,null,null,null,null,null,null,null,"orange"]
[null,null,null,null,null,null,null,null,null,null,null,null,null,null,null,null,null,null,null,null,null,"vert"]
[null,null,null,null,null,null,null,null,null,null,null,null,null,null,null,null,null,null,null,null,"feuil6","rouge"]
[null,null,null,null,null,null,null,null,null,null,null,null,null,null,null,null,null,null,null,null,null,"noire"]
[null,null,null,null,null,null,null,null,null,null,null,null,null,null,null,null,null,null,null,null,null,"orange"]
[null,null,null,null,null,null,null,null,null,null,null,null,null,null,null,null,null,null,null,null,null,"vert"]
[null,null,null,null,null,null,null,null,null,null,null,null,null,null,null,null,null,null,null,null,"feuil7","rouge"]
[null,null,null,null,null,null,null,null,null,null,null,null,null,null,null,null,null,null,null,null,null,"noire"]
[null,null,null,null,null,null,null,null,null,null,null,null,null,null,null,null,null,null,null,null,null,"orange"]
[null,null,null,null,null,null,null,null,null,null,null,null,null,null,null,null,null,null,null,null,null,"vert"]
[null,null,null,null,null,null,null,null,null,null,null,null,null,null,null,null,null,null,null,null,"feuil8","rouge"]
[null,null,null,null,null,null,null,null,null,null,null,null,null,null,null,null,null,null,null,null,null,"noire"]
[null,null,null,null,null,null,null,null,null,null,null,null,null,null,null,null,null,null,null,null,null,"orange"]
[null,null,null,null,null,null,null,null,null,null,null,null,null,null,null,null,null,null,null,null,null,"vert"]
[null,null,null,null,null,null,null,null,null,null,null,null,null,null,null,null,null,null,null,null,"feuil9","rouge"]
[null,null,null,null,null,null,null,null,null,null,null,null,null,null,null,null,null,null,null,null,null,"noire"]
[null,null,null,null,null,null,null,null,null,null,null,null,null,null,null,null,null,null,null,null,null,"orange"]
[null,null,null,null,null,null,null,null,null,null,null,null,null,null,null,null,null,null,null,null,null,"vert"]
[null,null,null,null,null,null,null,null,null,null,null,null,null,null,null,null,null,null,null,null,"feuil10","rouge"]
[null,null,null,null,null,null,null,null,null,null,null,null,null,null,null,null,null,null,null,null,null,"noire"]
[null,null,null,null,null,null,null,null,null,null,null,null,null,null,null,null,null,null,null,null,null,"orange"]
[null,null,null,null,null,null,null,null,null,null,null,null,null,null,null,null,null,null,null,null,null,"vert"]
[null,null,null,null,null,null,null,null,null,null,null,null,null,null,null,null,null,null,null,null,"feuil11","rouge"]
[null,null,null,null,null,null,null,null,null,null,null,null,null,null,null,null,null,null,null,null,null,"noire"]
[null,null,null,null,null,null,null,null,null,null,null,null,null,null,null,null,null,null,null,null,null,"orange"]
[null,null,null,null,null,null,null,null,null,null,null,null,null,null,null,null,null,null,null,null,null,"vert"]
[null,null,null,null,null,null,null,null,null,null,null,null,null,null,null,null,null,null,null,"p4","Feuil1","rouge"]
[null,null,null,null,null,null,null,null,null,null,null,null,null,null,null,null,null,null,null,null,null,"noire"]
[null,null,null,null,null,null,null,null,null,null,null,null,null,null,null,null,null,null,null,null,null,"orange"]
[null,null,null,null,null,null,null,null,null,null,null,null,null,null,null,null,null,null,null,null,null,"vert"]
[null,null,null,null,null,null,null,null,null,null,null,null,null,null,null,null,null,null,null,null,"feuil2","rouge"]
[null,null,null,null,null,null,null,null,null,null,null,null,null,null,null,null,null,null,null,null,null,"noire"]
[null,null,null,null,null,null,null,null,null,null,null,null,null,null,null,null,null,null,null,null,null,"orange"]
[null,null,null,null,null,null,null,null,null,null,null,null,null,null,null,null,null,null,null,null,null,"vert"]
[null,null,null,null,null,null,null,null,null,null,null,null,null,null,null,null,null,null,null,null,"feuil3","rouge"]
[null,null,null,null,null,null,null,null,null,null,null,null,null,null,null,null,null,null,null,null,null,"noire"]
[null,null,null,null,null,null,null,null,null,null,null,null,null,null,null,null,null,null,null,null,null,"orange"]
[null,null,null,null,null,null,null,null,null,null,null,null,null,null,null,null,null,null,null,null,null,"vert"]
[null,null,null,null,null,null,null,null,null,null,null,null,null,null,null,null,null,null,null,null,"feuil4","rouge"]
[null,null,null,null,null,null,null,null,null,null,null,null,null,null,null,null,null,null,null,null,null,"noire"]
[null,null,null,null,null,null,null,null,null,null,null,null,null,null,null,null,null,null,null,null,null,"orange"]
[null,null,null,null,null,null,null,null,null,null,null,null,null,null,null,null,null,null,null,null,null,"vert"]
[null,null,null,null,null,null,null,null,null,null,null,null,null,null,null,null,null,null,null,null,"feuil5","rouge"]
[null,null,null,null,null,null,null,null,null,null,null,null,null,null,null,null,null,null,null,null,null,"noire"]
[null,null,null,null,null,null,null,null,null,null,null,null,null,null,null,null,null,null,null,null,null,"orange"]
[null,null,null,null,null,null,null,null,null,null,null,null,null,null,null,null,null,null,null,null,null,"vert"]
[null,null,null,null,null,null,null,null,null,null,null,null,null,null,null,null,null,null,null,null,"feuil6","rouge"]
[null,null,null,null,null,null,null,null,null,null,null,null,null,null,null,null,null,null,null,null,null,"noire"]
[null,null,null,null,null,null,null,null,null,null,null,null,null,null,null,null,null,null,null,null,null,"orange"]
[null,null,null,null,null,null,null,null,null,null,null,null,null,null,null,null,null,null,null,null,null,"vert"]
[null,null,null,null,null,null,null,null,null,null,null,null,null,null,null,null,null,null,null,null,"feuil7","rouge"]
[null,null,null,null,null,null,null,null,null,null,null,null,null,null,null,null,null,null,null,null,null,"noire"]
[null,null,null,null,null,null,null,null,null,null,null,null,null,null,null,null,null,null,null,null,null,"orange"]
[null,null,null,null,null,null,null,null,null,null,null,null,null,null,null,null,null,null,null,null,null,"vert"]
[null,null,null,null,null,null,null,null,null,null,null,null,null,null,null,null,null,null,null,null,"feuil8","rouge"]
[null,null,null,null,null,null,null,null,null,null,null,null,null,null,null,null,null,null,null,null,null,"noire"]
[null,null,null,null,null,null,null,null,null,null,null,null,null,null,null,null,null,null,null,null,null,"orange"]
[null,null,null,null,null,null,null,null,null,null,null,null,null,null,null,null,null,null,null,null,null,"vert"]
[null,null,null,null,null,null,null,null,null,null,null,null,null,null,null,null,null,null,null,null,"feuil9","rouge"]
[null,null,null,null,null,null,null,null,null,null,null,null,null,null,null,null,null,null,null,null,null,"noire"]
[null,null,null,null,null,null,null,null,null,null,null,null,null,null,null,null,null,null,null,null,null,"orange"]
[null,null,null,null,null,null,null,null,null,null,null,null,null,null,null,null,null,null,null,null,null,"vert"]
[null,null,null,null,null,null,null,null,null,null,null,null,null,null,null,null,null,null,null,null,"feuil10","rouge"]
[null,null,null,null,null,null,null,null,null,null,null,null,null,null,null,null,null,null,null,null,null,"noire"]
[null,null,null,null,null,null,null,null,null,null,null,null,null,null,null,null,null,null,null,null,null,"orange"]
[null,null,null,null,null,null,null,null,null,null,null,null,null,null,null,null,null,null,null,null,null,"vert"]
[null,null,null,null,null,null,null,null,null,null,null,null,null,null,null,null,null,null,null,null,"feuil11","rouge"]
[null,null,null,null,null,null,null,null,null,null,null,null,null,null,null,null,null,null,null,null,null,"noire"]
[null,null,null,null,null,null,null,null,null,null,null,null,null,null,null,null,null,null,null,null,null,"orange"]
[null,null,null,null,null,null,null,null,null,null,null,null,null,null,null,null,null,null,null,null,null,"vert"]
[null,null,null,null,null,null,null,null,null,null,null,null,null,null,null,null,null,null,null,"p5","Feuil1","rouge"]
[null,null,null,null,null,null,null,null,null,null,null,null,null,null,null,null,null,null,null,null,null,"noire"]
[null,null,null,null,null,null,null,null,null,null,null,null,null,null,null,null,null,null,null,null,null,"orange"]
[null,null,null,null,null,null,null,null,null,null,null,null,null,null,null,null,null,null,null,null,null,"vert"]
[null,null,null,null,null,null,null,null,null,null,null,null,null,null,null,null,null,null,null,null,"feuil2","rouge"]
[null,null,null,null,null,null,null,null,null,null,null,null,null,null,null,null,null,null,null,null,null,"noire"]
[null,null,null,null,null,null,null,null,null,null,null,null,null,null,null,null,null,null,null,null,null,"orange"]
[null,null,null,null,null,null,null,null,null,null,null,null,null,null,null,null,null,null,null,null,null,"vert"]
[null,null,null,null,null,null,null,null,null,null,null,null,null,null,null,null,null,null,null,null,"feuil3","rouge"]
[null,null,null,null,null,null,null,null,null,null,null,null,null,null,null,null,null,null,null,null,null,"noire"]
[null,null,null,null,null,null,null,null,null,null,null,null,null,null,null,null,null,null,null,null,null,"orange"]
[null,null,null,null,null,null,null,null,null,null,null,null,null,null,null,null,null,null,null,null,null,"vert"]
[null,null,null,null,null,null,null,null,null,null,null,null,null,null,null,null,null,null,null,null,"feuil4","rouge"]
[null,null,null,null,null,null,null,null,null,null,null,null,null,null,null,null,null,null,null,null,null,"noire"]
[null,null,null,null,null,null,null,null,null,null,null,null,null,null,null,null,null,null,null,null,null,"orange"]
[null,null,null,null,null,null,null,null,null,null,null,null,null,null,null,null,null,null,null,null,null,"vert"]
[null,null,null,null,null,null,null,null,null,null,null,null,null,null,null,null,null,null,null,null,"feuil5","rouge"]
[null,null,null,null,null,null,null,null,null,null,null,null,null,null,null,null,null,null,null,null,null,"noire"]
[null,null,null,null,null,null,null,null,null,null,null,null,null,null,null,null,null,null,null,null,null,"orange"]
[null,null,null,null,null,null,null,null,null,null,null,null,null,null,null,null,null,null,null,null,null,"vert"]
[null,null,null,null,null,null,null,null,null,null,null,null,null,null,null,null,null,null,null,null,"feuil6","rouge"]
[null,null,null,null,null,null,null,null,null,null,null,null,null,null,null,null,null,null,null,null,null,"noire"]
[null,null,null,null,null,null,null,null,null,null,null,null,null,null,null,null,null,null,null,null,null,"orange"]
[null,null,null,null,null,null,null,null,null,null,null,null,null,null,null,null,null,null,null,null,null,"vert"]
[null,null,null,null,null,null,null,null,null,null,null,null,null,null,null,null,null,null,null,null,"feuil7","rouge"]
[null,null,null,null,null,null,null,null,null,null,null,null,null,null,null,null,null,null,null,null,null,"noire"]
[null,null,null,null,null,null,null,null,null,null,null,null,null,null,null,null,null,null,null,null,null,"orange"]
[null,null,null,null,null,null,null,null,null,null,null,null,null,null,null,null,null,null,null,null,null,"vert"]
[null,null,null,null,null,null,null,null,null,null,null,null,null,null,null,null,null,null,null,null,"feuil8","rouge"]
[null,null,null,null,null,null,null,null,null,null,null,null,null,null,null,null,null,null,null,null,null,"noire"]
[null,null,null,null,null,null,null,null,null,null,null,null,null,null,null,null,null,null,null,null,null,"orange"]
[null,null,null,null,null,null,null,null,null,null,null,null,null,null,null,null,null,null,null,null,null,"vert"]
[null,null,null,null,null,null,null,null,null,null,null,null,null,null,null,null,null,null,null,null,"feuil9","rouge"]
[null,null,null,null,null,null,null,null,null,null,null,null,null,null,null,null,null,null,null,null,null,"noire"]
[null,null,null,null,null,null,null,null,null,null,null,null,null,null,null,null,null,null,null,null,null,"orange"]
[null,null,null,null,null,null,null,null,null,null,null,null,null,null,null,null,null,null,null,null,null,"vert"]
[null,null,null,null,null,null,null,null,null,null,null,null,null,null,null,null,null,null,null,null,"feuil10","rouge"]
[null,null,null,null,null,null,null,null,null,null,null,null,null,null,null,null,null,null,null,null,null,"noire"]
[null,null,null,null,null,null,null,null,null,null,null,null,null,null,null,null,null,null,null,null,null,"orange"]
[null,null,null,null,null,null,null,null,null,null,null,null,null,null,null,null,null,null,null,null,null,"vert"]
[null,null,null,null,null,null,null,null,null,null,null,null,null,null,null,null,null,null,null,null,"feuil11","rouge"]
[null,null,null,null,null,null,null,null,null,null,null,null,null,null,null,null,null,null,null,null,null,"noire"]
[null,null,null,null,null,null,null,null,null,null,null,null,null,null,null,null,null,null,null,null,null,"orange"]
[null,null,null,null,null,null,null,null,null,null,null,null,null,null,null,null,null,null,null,null,null,"vert"]
[null,null,null,null,null,null,null,null,null,null,null,null,null,null,null,null,null,null,null,"p6","Feuil1","rouge"]
[null,null,null,null,null,null,null,null,null,null,null,null,null,null,null,null,null,null,null,null,null,"noire"]
[null,null,null,null,null,null,null,null,null,null,null,null,null,null,null,null,null,null,null,null,null,"orange"]
[null,null,null,null,null,null,null,null,null,null,null,null,null,null,null,null,null,null,null,null,null,"vert"]
[null,null,null,null,null,null,null,null,null,null,null,null,null,null,null,null,null,null,null,null,"feuil2","rouge"]
[null,null,null,null,null,null,null,null,null,null,null,null,null,null,null,null,null,null,null,null,null,"noire"]
[null,null,null,null,null,null,null,null,null,null,null,null,null,null,null,null,null,null,null,null,null,"orange"]
[null,null,null,null,null,null,null,null,null,null,null,null,null,null,null,null,null,null,null,null,null,"vert"]
[null,null,null,null,null,null,null,null,null,null,null,null,null,null,null,null,null,null,null,null,"feuil3","rouge"]
[null,null,null,null,null,null,null,null,null,null,null,null,null,null,null,null,null,null,null,null,null,"noire"]
[null,null,null,null,null,null,null,null,null,null,null,null,null,null,null,null,null,null,null,null,null,"orange"]
[null,null,null,null,null,null,null,null,null,null,null,null,null,null,null,null,null,null,null,null,null,"vert"]
[null,null,null,null,null,null,null,null,null,null,null,null,null,null,null,null,null,null,null,null,"feuil4","rouge"]
[null,null,null,null,null,null,null,null,null,null,null,null,null,null,null,null,null,null,null,null,null,"noire"]
[null,null,null,null,null,null,null,null,null,null,null,null,null,null,null,null,null,null,null,null,null,"orange"]
[null,null,null,null,null,null,null,null,null,null,null,null,null,null,null,null,null,null,null,null,null,"vert"]
[null,null,null,null,null,null,null,null,null,null,null,null,null,null,null,null,null,null,null,null,"feuil5","rouge"]
[null,null,null,null,null,null,null,null,null,null,null,null,null,null,null,null,null,null,null,null,null,"noire"]
[null,null,null,null,null,null,null,null,null,null,null,null,null,null,null,null,null,null,null,null,null,"orange"]
[null,null,null,null,null,null,null,null,null,null,null,null,null,null,null,null,null,null,null,null,null,"vert"]
[null,null,null,null,null,null,null,null,null,null,null,null,null,null,null,null,null,null,null,null,"feuil6","rouge"]
[null,null,null,null,null,null,null,null,null,null,null,null,null,null,null,null,null,null,null,null,null,"noire"]
[null,null,null,null,null,null,null,null,null,null,null,null,null,null,null,null,null,null,null,null,null,"orange"]
[null,null,null,null,null,null,null,null,null,null,null,null,null,null,null,null,null,null,null,null,null,"vert"]
[null,null,null,null,null,null,null,null,null,null,null,null,null,null,null,null,null,null,null,null,"feuil7","rouge"]
[null,null,null,null,null,null,null,null,null,null,null,null,null,null,null,null,null,null,null,null,null,"noire"]
[null,null,null,null,null,null,null,null,null,null,null,null,null,null,null,null,null,null,null,null,null,"orange"]
[null,null,null,null,null,null,null,null,null,null,null,null,null,null,null,null,null,null,null,null,null,"vert"]
[null,null,null,null,null,null,null,null,null,null,null,null,null,null,null,null,null,null,null,null,"feuil8","rouge"]
[null,null,null,null,null,null,null,null,null,null,null,null,null,null,null,null,null,null,null,null,null,"noire"]
[null,null,null,null,null,null,null,null,null,null,null,null,null,null,null,null,null,null,null,null,null,"orange"]
[null,null,null,null,null,null,null,null,null,null,null,null,null,null,null,null,null,null,null,null,null,"vert"]
[null,null,null,null,null,null,null,null,null,null,null,null,null,null,null,null,null,null,null,null,"feuil9","rouge"]
[null,null,null,null,null,null,null,null,null,null,null,null,null,null,null,null,null,null,null,null,null,"noire"]
[null,null,null,null,null,null,null,null,null,null,null,null,null,null,null,null,null,null,null,null,null,"orange"]
[null,null,null,null,null,null,null,null,null,null,null,null,null,null,null,null,null,null,null,null,null,"vert"]
[null,null,null,null,null,null,null,null,null,null,null,null,null,null,null,null,null,null,null,null,"feuil10","rouge"]
[null,null,null,null,null,null,null,null,null,null,null,null,null,null,null,null,null,null,null,null,null,"noire"]
[null,null,null,null,null,null,null,null,null,null,null,null,null,null,null,null,null,null,null,null,null,"orange"]
[null,null,null,null,null,null,null,null,null,null,null,null,null,null,null,null,null,null,null,null,null,"vert"]
[null,null,null,null,null,null,null,null,null,null,null,null,null,null,null,null,null,null,null,null,"feuil11","rouge"]
[null,null,null,null,null,null,null,null,null,null,null,null,null,null,null,null,null,null,null,null,null,"noire"]
[null,null,null,null,null,null,null,null,null,null,null,null,null,null,null,null,null,null,null,null,null,"orange"]
[null,null,null,null,null,null,null,null,null,null,null,null,null,null,null,null,null,null,null,null,null,"vert"]
[null,null,null,null,null,null,null,null,null,null,null,null,null,null,null,null,null,null,null,"p7","Feuil1","rouge"]
[null,null,null,null,null,null,null,null,null,null,null,null,null,null,null,null,null,null,null,null,null,"noire"]
[null,null,null,null,null,null,null,null,null,null,null,null,null,null,null,null,null,null,null,null,null,"orange"]
[null,null,null,null,null,null,null,null,null,null,null,null,null,null,null,null,null,null,null,null,null,"vert"]
[null,null,null,null,null,null,null,null,null,null,null,null,null,null,null,null,null,null,null,null,"feuil2","rouge"]
[null,null,null,null,null,null,null,null,null,null,null,null,null,null,null,null,null,null,null,null,null,"noire"]
[null,null,null,null,null,null,null,null,null,null,null,null,null,null,null,null,null,null,null,null,null,"orange"]
[null,null,null,null,null,null,null,null,null,null,null,null,null,null,null,null,null,null,null,null,null,"vert"]
[null,null,null,null,null,null,null,null,null,null,null,null,null,null,null,null,null,null,null,null,"feuil3","rouge"]
[null,null,null,null,null,null,null,null,null,null,null,null,null,null,null,null,null,null,null,null,null,"noire"]
[null,null,null,null,null,null,null,null,null,null,null,null,null,null,null,null,null,null,null,null,null,"orange"]
[null,null,null,null,null,null,null,null,null,null,null,null,null,null,null,null,null,null,null,null,null,"vert"]
[null,null,null,null,null,null,null,null,null,null,null,null,null,null,null,null,null,null,null,null,"feuil4","rouge"]
[null,null,null,null,null,null,null,null,null,null,null,null,null,null,null,null,null,null,null,null,null,"noire"]
[null,null,null,null,null,null,null,null,null,null,null,null,null,null,null,null,null,null,null,null,null,"orange"]
[null,null,null,null,null,null,null,null,null,null,null,null,null,null,null,null,null,null,null,null,null,"vert"]
[null,null,null,null,null,null,null,null,null,null,null,null,null,null,null,null,null,null,null,null,"feuil5","rouge"]
[null,null,null,null,null,null,null,null,null,null,null,null,null,null,null,null,null,null,null,null,null,"noire"]
[null,null,null,null,null,null,null,null,null,null,null,null,null,null,null,null,null,null,null,null,null,"orange"]
[null,null,null,null,null,null,null,null,null,null,null,null,null,null,null,null,null,null,null,null,null,"vert"]
[null,null,null,null,null,null,null,null,null,null,null,null,null,null,null,null,null,null,null,null,"feuil6","rouge"]
[null,null,null,null,null,null,null,null,null,null,null,null,null,null,null,null,null,null,null,null,null,"noire"]
[null,null,null,null,null,null,null,null,null,null,null,null,null,null,null,null,null,null,null,null,null,"orange"]
[null,null,null,null,null,null,null,null,null,null,null,null,null,null,null,null,null,null,null,null,null,"vert"]
[null,null,null,null,null,null,null,null,null,null,null,null,null,null,null,null,null,null,null,null,"feuil7","rouge"]
[null,null,null,null,null,null,null,null,null,null,null,null,null,null,null,null,null,null,null,null,null,"noire"]
[null,null,null,null,null,null,null,null,null,null,null,null,null,null,null,null,null,null,null,null,null,"orange"]
[null,null,null,null,null,null,null,null,null,null,null,null,null,null,null,null,null,null,null,null,null,"vert"]
[null,null,null,null,null,null,null,null,null,null,null,null,null,null,null,null,null,null,null,null,"feuil8","rouge"]
[null,null,null,null,null,null,null,null,null,null,null,null,null,null,null,null,null,null,null,null,null,"noire"]
[null,null,null,null,null,null,null,null,null,null,null,null,null,null,null,null,null,null,null,null,null,"orange"]
[null,null,null,null,null,null,null,null,null,null,null,null,null,null,null,null,null,null,null,null,null,"vert"]
[null,null,null,null,null,null,null,null,null,null,null,null,null,null,null,null,null,null,null,null,"feuil9","rouge"]
[null,null,null,null,null,null,null,null,null,null,null,null,null,null,null,null,null,null,null,null,null,"noire"]
[null,null,null,null,null,null,null,null,null,null,null,null,null,null,null,null,null,null,null,null,null,"orange"]
[null,null,null,null,null,null,null,null,null,null,null,null,null,null,null,null,null,null,null,null,null,"vert"]
[null,null,null,null,null,null,null,null,null,null,null,null,null,null,null,null,null,null,null,null,"feuil10","rouge"]
[null,null,null,null,null,null,null,null,null,null,null,null,null,null,null,null,null,null,null,null,null,"noire"]
[null,null,null,null,null,null,null,null,null,null,null,null,null,null,null,null,null,null,null,null,null,"orange"]
[null,null,null,null,null,null,null,null,null,null,null,null,null,null,null,null,null,null,null,null,null,"vert"]
[null,null,null,null,null,null,null,null,null,null,null,null,null,null,null,null,null,null,null,null,"feuil11","rouge"]
[null,null,null,null,null,null,null,null,null,null,null,null,null,null,null,null,null,null,null,null,null,"noire"]
[null,null,null,null,null,null,null,null,null,null,null,null,null,null,null,null,null,null,null,null,null,"orange"]
[null,null,null,null,null,null,null,null,null,null,null,null,null,null,null,null,null,null,null,null,null,"vert"]
[null,null,null,null,null,null,null,null,null,null,null,null,null,null,null,null,null,null,null,"p8","Feuil1","rouge"]
[null,null,null,null,null,null,null,null,null,null,null,null,null,null,null,null,null,null,null,null,null,"noire"]
[null,null,null,null,null,null,null,null,null,null,null,null,null,null,null,null,null,null,null,null,null,"orange"]
[null,null,null,null,null,null,null,null,null,null,null,null,null,null,null,null,null,null,null,null,null,"vert"]
[null,null,null,null,null,null,null,null,null,null,null,null,null,null,null,null,null,null,null,null,"feuil2","rouge"]
[null,null,null,null,null,null,null,null,null,null,null,null,null,null,null,null,null,null,null,null,null,"noire"]
[null,null,null,null,null,null,null,null,null,null,null,null,null,null,null,null,null,null,null,null,null,"orange"]
[null,null,null,null,null,null,null,null,null,null,null,null,null,null,null,null,null,null,null,null,null,"vert"]
[null,null,null,null,null,null,null,null,null,null,null,null,null,null,null,null,null,null,null,null,"feuil3","rouge"]
[null,null,null,null,null,null,null,null,null,null,null,null,null,null,null,null,null,null,null,null,null,"noire"]
[null,null,null,null,null,null,null,null,null,null,null,null,null,null,null,null,null,null,null,null,null,"orange"]
[null,null,null,null,null,null,null,null,null,null,null,null,null,null,null,null,null,null,null,null,null,"vert"]
[null,null,null,null,null,null,null,null,null,null,null,null,null,null,null,null,null,null,null,null,"feuil4","rouge"]
[null,null,null,null,null,null,null,null,null,null,null,null,null,null,null,null,null,null,null,null,null,"noire"]
[null,null,null,null,null,null,null,null,null,null,null,null,null,null,null,null,null,null,null,null,null,"orange"]
[null,null,null,null,null,null,null,null,null,null,null,null,null,null,null,null,null,null,null,null,null,"vert"]
[null,null,null,null,null,null,null,null,null,null,null,null,null,null,null,null,null,null,null,null,"feuil5","rouge"]
[null,null,null,null,null,null,null,null,null,null,null,null,null,null,null,null,null,null,null,null,null,"noire"]
[null,null,null,null,null,null,null,null,null,null,null,null,null,null,null,null,null,null,null,null,null,"orange"]
[null,null,null,null,null,null,null,null,null,null,null,null,null,null,null,null,null,null,null,null,null,"vert"]
[null,null,null,null,null,null,null,null,null,null,null,null,null,null,null,null,null,null,null,null,"feuil6","rouge"]
[null,null,null,null,null,null,null,null,null,null,null,null,null,null,null,null,null,null,null,null,null,"noire"]
[null,null,null,null,null,null,null,null,null,null,null,null,null,null,null,null,null,null,null,null,null,"orange"]
[null,null,null,null,null,null,null,null,null,null,null,null,null,null,null,null,null,null,null,null,null,"vert"]
[null,null,null,null,null,null,null,null,null,null,null,null,null,null,null,null,null,null,null,null,"feuil7","rouge"]
[null,null,null,null,null,null,null,null,null,null,null,null,null,null,null,null,null,null,null,null,null,"noire"]
[null,null,null,null,null,null,null,null,null,null,null,null,null,null,null,null,null,null,null,null,null,"orange"]
[null,null,null,null,null,null,null,null,null,null,null,null,null,null,null,null,null,null,null,null,null,"vert"]
[null,null,null,null,null,null,null,null,null,null,null,null,null,null,null,null,null,null,null,null,"feuil8","rouge"]
[null,null,null,null,null,null,null,null,null,null,null,null,null,null,null,null,null,null,null,null,null,"noire"]
[null,null,null,null,null,null,null,null,null,null,null,null,null,null,null,null,null,null,null,null,null,"orange"]
[null,null,null,null,null,null,null,null,null,null,null,null,null,null,null,null,null,null,null,null,null,"vert"]
[null,null,null,null,null,null,null,null,null,null,null,null,null,null,null,null,null,null,null,null,"feuil9","rouge"]
[null,null,null,null,null,null,null,null,null,null,null,null,null,null,null,null,null,null,null,null,null,"noire"]
[null,null,null,null,null,null,null,null,null,null,null,null,null,null,null,null,null,null,null,null,null,"orange"]
[null,null,null,null,null,null,null,null,null,null,null,null,null,null,null,null,null,null,null,null,null,"vert"]
[null,null,null,null,null,null,null,null,null,null,null,null,null,null,null,null,null,null,null,null,"feuil10","rouge"]
[null,null,null,null,null,null,null,null,null,null,null,null,null,null,null,null,null,null,null,null,null,"noire"]
[null,null,null,null,null,null,null,null,null,null,null,null,null,null,null,null,null,null,null,null,null,"orange"]
[null,null,null,null,null,null,null,null,null,null,null,null,null,null,null,null,null,null,null,null,null,"vert"]
[null,null,null,null,null,null,null,null,null,null,null,null,null,null,null,null,null,null,null,null,"feuil11","rouge"]
[null,null,null,null,null,null,null,null,null,null,null,null,null,null,null,null,null,null,null,null,null,"noire"]
[null,null,null,null,null,null,null,null,null,null,null,null,null,null,null,null,null,null,null,null,null,"orange"]
[null,null,null,null,null,null,null,null,null,null,null,null,null,null,null,null,null,null,null,null,null,"vert"]
[null,null,null,null,null,null,null,null,null,null,null,null,null,null,null,null,null,null,null,"p9","Feuil1","rouge"]
[null,null,null,null,null,null,null,null,null,null,null,null,null,null,null,null,null,null,null,null,null,"noire"]
[null,null,null,null,null,null,null,null,null,null,null,null,null,null,null,null,null,null,null,null,null,"orange"]
[null,null,null,null,null,null,null,null,null,null,null,null,null,null,null,null,null,null,null,null,null,"vert"]
[null,null,null,null,null,null,null,null,null,null,null,null,null,null,null,null,null,null,null,null,"feuil2","rouge"]
[null,null,null,null,null,null,null,null,null,null,null,null,null,null,null,null,null,null,null,null,null,"noire"]
[null,null,null,null,null,null,null,null,null,null,null,null,null,null,null,null,null,null,null,null,null,"orange"]
[null,null,null,null,null,null,null,null,null,null,null,null,null,null,null,null,null,null,null,null,null,"vert"]
[null,null,null,null,null,null,null,null,null,null,null,null,null,null,null,null,null,null,null,null,"feuil3","rouge"]
[null,null,null,null,null,null,null,null,null,null,null,null,null,null,null,null,null,null,null,null,null,"noire"]
[null,null,null,null,null,null,null,null,null,null,null,null,null,null,null,null,null,null,null,null,null,"orange"]
[null,null,null,null,null,null,null,null,null,null,null,null,null,null,null,null,null,null,null,null,null,"vert"]
[null,null,null,null,null,null,null,null,null,null,null,null,null,null,null,null,null,null,null,null,"feuil4","rouge"]
[null,null,null,null,null,null,null,null,null,null,null,null,null,null,null,null,null,null,null,null,null,"noire"]
[null,null,null,null,null,null,null,null,null,null,null,null,null,null,null,null,null,null,null,null,null,"orange"]
[null,null,null,null,null,null,null,null,null,null,null,null,null,null,null,null,null,null,null,null,null,"vert"]
[null,null,null,null,null,null,null,null,null,null,null,null,null,null,null,null,null,null,null,null,"feuil5","rouge"]
[null,null,null,null,null,null,null,null,null,null,null,null,null,null,null,null,null,null,null,null,null,"noire"]
[null,null,null,null,null,null,null,null,null,null,null,null,null,null,null,null,null,null,null,null,null,"orange"]
[null,null,null,null,null,null,null,null,null,null,null,null,null,null,null,null,null,null,null,null,null,"vert"]
[null,null,null,null,null,null,null,null,null,null,null,null,null,null,null,null,null,null,null,null,"feuil6","rouge"]
[null,null,null,null,null,null,null,null,null,null,null,null,null,null,null,null,null,null,null,null,null,"noire"]
[null,null,null,null,null,null,null,null,null,null,null,null,null,null,null,null,null,null,null,null,null,"orange"]
[null,null,null,null,null,null,null,null,null,null,null,null,null,null,null,null,null,null,null,null,null,"vert"]
[null,null,null,null,null,null,null,null,null,null,null,null,null,null,null,null,null,null,null,null,"feuil7","rouge"]
[null,null,null,null,null,null,null,null,null,null,null,null,null,null,null,null,null,null,null,null,null,"noire"]
[null,null,null,null,null,null,null,null,null,null,null,null,null,null,null,null,null,null,null,null,null,"orange"]
[null,null,null,null,null,null,null,null,null,null,null,null,null,null,null,null,null,null,null,null,null,"vert"]
[null,null,null,null,null,null,null,null,null,null,null,null,null,null,null,null,null,null,null,null,"feuil8","rouge"]
[null,null,null,null,null,null,null,null,null,null,null,null,null,null,null,null,null,null,null,null,null,"noire"]
[null,null,null,null,null,null,null,null,null,null,null,null,null,null,null,null,null,null,null,null,null,"orange"]
[null,null,null,null,null,null,null,null,null,null,null,null,null,null,null,null,null,null,null,null,null,"vert"]
[null,null,null,null,null,null,null,null,null,null,null,null,null,null,null,null,null,null,null,null,"feuil9","rouge"]
[null,null,null,null,null,null,null,null,null,null,null,null,null,null,null,null,null,null,null,null,null,"noire"]
[null,null,null,null,null,null,null,null,null,null,null,null,null,null,null,null,null,null,null,null,null,"orange"]
[null,null,null,null,null,null,null,null,null,null,null,null,null,null,null,null,null,null,null,null,null,"vert"]
[null,null,null,null,null,null,null,null,null,null,null,null,null,null,null,null,null,null,null,null,"feuil10","rouge"]
[null,null,null,null,null,null,null,null,null,null,null,null,null,null,null,null,null,null,null,null,null,"noire"]
[null,null,null,null,null,null,null,null,null,null,null,null,null,null,null,null,null,null,null,null,null,"orange"]
[null,null,null,null,null,null,null,null,null,null,null,null,null,null,null,null,null,null,null,null,null,"vert"]
[null,null,null,null,null,null,null,null,null,null,null,null,null,null,null,null,null,null,null,null,"feuil11","rouge"]
[null,null,null,null,null,null,null,null,null,null,null,null,null,null,null,null,null,null,null,null,null,"noire"]
[null,null,null,null,null,null,null,null,null,null,null,null,null,null,null,null,null,null,null,null,null,"orange"]
[null,null,null,null,null,null,null,null,null,null,null,null,null,null,null,null,null,null,null,null,null,"vert"]
[null,null,null,null,null,null,null,null,null,null,null,null,null,null,null,null,null,null,null,"p10","Feuil1","rouge"]
[null,null,null,null,null,null,null,null,null,null,null,null,null,null,null,null,null,null,null,null,null,"noire"]
[null,null,null,null,null,null,null,null,null,null,null,null,null,null,null,null,null,null,null,null,null,"orange"]
[null,null,null,null,null,null,null,null,null,null,null,null,null,null,null,null,null,null,null,null,null,"vert"]
[null,null,null,null,null,null,null,null,null,null,null,null,null,null,null,null,null,null,null,null,"feuil2","rouge"]
[null,null,null,null,null,null,null,null,null,null,null,null,null,null,null,null,null,null,null,null,null,"noire"]
[null,null,null,null,null,null,null,null,null,null,null,null,null,null,null,null,null,null,null,null,null,"orange"]
[null,null,null,null,null,null,null,null,null,null,null,null,null,null,null,null,null,null,null,null,null,"vert"]
[null,null,null,null,null,null,null,null,null,null,null,null,null,null,null,null,null,null,null,null,"feuil3","rouge"]
[null,null,null,null,null,null,null,null,null,null,null,null,null,null,null,null,null,null,null,null,null,"noire"]
[null,null,null,null,null,null,null,null,null,null,null,null,null,null,null,null,null,null,null,null,null,"orange"]
[null,null,null,null,null,null,null,null,null,null,null,null,null,null,null,null,null,null,null,null,null,"vert"]
[null,null,null,null,null,null,null,null,null,null,null,null,null,null,null,null,null,null,null,null,"feuil4","rouge"]
[null,null,null,null,null,null,null,null,null,null,null,null,null,null,null,null,null,null,null,null,null,"noire"]
[null,null,null,null,null,null,null,null,null,null,null,null,null,null,null,null,null,null,null,null,null,"orange"]
[null,null,null,null,null,null,null,null,null,null,null,null,null,null,null,null,null,null,null,null,null,"vert"]
[null,null,null,null,null,null,null,null,null,null,null,null,null,null,null,null,null,null,null,null,"feuil5","rouge"]
[null,null,null,null,null,null,null,null,null,null,null,null,null,null,null,null,null,null,null,null,null,"noire"]
[null,null,null,null,null,null,null,null,null,null,null,null,null,null,null,null,null,null,null,null,null,"orange"]
[null,null,null,null,null,null,null,null,null,null,null,null,null,null,null,null,null,null,null,null,null,"vert"]
[null,null,null,null,null,null,null,null,null,null,null,null,null,null,null,null,null,null,null,null,"feuil6","rouge"]
[null,null,null,null,null,null,null,null,null,null,null,null,null,null,null,null,null,null,null,null,null,"noire"]
[null,null,null,null,null,null,null,null,null,null,null,null,null,null,null,null,null,null,null,null,null,"orange"]
[null,null,null,null,null,null,null,null,null,null,null,null,null,null,null,null,null,null,null,null,null,"vert"]
[null,null,null,null,null,null,null,null,null,null,null,null,null,null,null,null,null,null,null,null,"feuil7","rouge"]
[null,null,null,null,null,null,null,null,null,null,null,null,null,null,null,null,null,null,null,null,null,"noire"]
[null,null,null,null,null,null,null,null,null,null,null,null,null,null,null,null,null,null,null,null,null,"orange"]
[null,null,null,null,null,null,null,null,null,null,null,null,null,null,null,null,null,null,null,null,null,"vert"]
[null,null,null,null,null,null,null,null,null,null,null,null,null,null,null,null,null,null,null,null,"feuil8","rouge"]
[null,null,null,null,null,null,null,null,null,null,null,null,null,null,null,null,null,null,null,null,null,"noire"]
[null,null,null,null,null,null,null,null,null,null,null,null,null,null,null,null,null,null,null,null,null,"orange"]
[null,null,null,null,null,null,null,null,null,null,null,null,null,null,null,null,null,null,null,null,null,"vert"]
[null,null,null,null,null,null,null,null,null,null,null,null,null,null,null,null,null,null,null,null,"feuil9","rouge"]
[null,null,null,null,null,null,null,null,null,null,null,null,null,null,null,null,null,null,null,null,null,"noire"]
[null,null,null,null,null,null,null,null,null,null,null,null,null,null,null,null,null,null,null,null,null,"orange"]
[null,null,null,null,null,null,null,null,null,null,null,null,null,null,null,null,null,null,null,null,null,"vert"]
[null,null,null,null,null,null,null,null,null,null,null,null,null,null,null,null,null,null,null,null,"feuil10","rouge"]
[null,null,null,null,null,null,null,null,null,null,null,null,null,null,null,null,null,null,null,null,null,"noire"]
[null,null,null,null,null,null,null,null,null,null,null,null,null,null,null,null,null,null,null,null,null,"orange"]
[null,null,null,null,null,null,null,null,null,null,null,null,null,null,null,null,null,null,null,null,null,"vert"]
[null,null,null,null,null,null,null,null,null,null,null,null,null,null,null,null,null,null,null,null,"feuil11","rouge"]
[null,null,null,null,null,null,null,null,null,null,null,null,null,null,null,null,null,null,null,null,null,"noire"]
[null,null,null,null,null,null,null,null,null,null,null,null,null,null,null,null,null,null,null,null,null,"orange"]
[null,null,null,null,null,null,null,null,null,null,null,null,null,null,null,null,null,null,null,null,null,"vert"]
[null,null,null,null,null,null,null,null,null,null,null,null,null,null,null,null,null,null,null,"p11","Feuil1","rouge"]
[null,null,null,null,null,null,null,null,null,null,null,null,null,null,null,null,null,null,null,null,null,"noire"]
[null,null,null,null,null,null,null,null,null,null,null,null,null,null,null,null,null,null,null,null,null,"orange"]
[null,null,null,null,null,null,null,null,null,null,null,null,null,null,null,null,null,null,null,null,null,"vert"]
[null,null,null,null,null,null,null,null,null,null,null,null,null,null,null,null,null,null,null,null,"feuil2","rouge"]
[null,null,null,null,null,null,null,null,null,null,null,null,null,null,null,null,null,null,null,null,null,"noire"]
[null,null,null,null,null,null,null,null,null,null,null,null,null,null,null,null,null,null,null,null,null,"orange"]
[null,null,null,null,null,null,null,null,null,null,null,null,null,null,null,null,null,null,null,null,null,"vert"]
[null,null,null,null,null,null,null,null,null,null,null,null,null,null,null,null,null,null,null,null,"feuil3","rouge"]
[null,null,null,null,null,null,null,null,null,null,null,null,null,null,null,null,null,null,null,null,null,"noire"]
[null,null,null,null,null,null,null,null,null,null,null,null,null,null,null,null,null,null,null,null,null,"orange"]
[null,null,null,null,null,null,null,null,null,null,null,null,null,null,null,null,null,null,null,null,null,"vert"]
[null,null,null,null,null,null,null,null,null,null,null,null,null,null,null,null,null,null,null,null,"feuil4","rouge"]
[null,null,null,null,null,null,null,null,null,null,null,null,null,null,null,null,null,null,null,null,null,"noire"]
[null,null,null,null,null,null,null,null,null,null,null,null,null,null,null,null,null,null,null,null,null,"orange"]
[null,null,null,null,null,null,null,null,null,null,null,null,null,null,null,null,null,null,null,null,null,"vert"]
[null,null,null,null,null,null,null,null,null,null,null,null,null,null,null,null,null,null,null,null,"feuil5","rouge"]
[null,null,null,null,null,null,null,null,null,null,null,null,null,null,null,null,null,null,null,null,null,"noire"]
[null,null,null,null,null,null,null,null,null,null,null,null,null,null,null,null,null,null,null,null,null,"orange"]
[null,null,null,null,null,null,null,null,null,null,null,null,null,null,null,null,null,null,null,null,null,"vert"]
[null,null,null,null,null,null,null,null,null,null,null,null,null,null,null,null,null,null,null,null,"feuil6","rouge"]
[null,null,null,null,null,null,null,null,null,null,null,null,null,null,null,null,null,null,null,null,null,"noire"]
[null,null,null,null,null,null,null,null,null,null,null,null,null,null,null,null,null,null,null,null,null,"orange"]
[null,null,null,null,null,null,null,null,null,null,null,null,null,null,null,null,null,null,null,null,null,"vert"]
[null,null,null,null,null,null,null,null,null,null,null,null,null,null,null,null,null,null,null,null,"feuil7","rouge"]
[null,null,null,null,null,null,null,null,null,null,null,null,null,null,null,null,null,null,null,null,null,"noire"]
[null,null,null,null,null,null,null,null,null,null,null,null,null,null,null,null,null,null,null,null,null,"orange"]
[null,null,null,null,null,null,null,null,null,null,null,null,null,null,null,null,null,null,null,null,null,"vert"]
[null,null,null,null,null,null,null,null,null,null,null,null,null,null,null,null,null,null,null,null,"feuil8","rouge"]
[null,null,null,null,null,null,null,null,null,null,null,null,null,null,null,null,null,null,null,null,null,"noire"]
[null,null,null,null,null,null,null,null,null,null,null,null,null,null,null,null,null,null,null,null,null,"orange"]
[null,null,null,null,null,null,null,null,null,null,null,null,null,null,null,null,null,null,null,null,null,"vert"]
[null,null,null,null,null,null,null,null,null,null,null,null,null,null,null,null,null,null,null,null,"feuil9","rouge"]
[null,null,null,null,null,null,null,null,null,null,null,null,null,null,null,null,null,null,null,null,null,"noire"]
[null,null,null,null,null,null,null,null,null,null,null,null,null,null,null,null,null,null,null,null,null,"orange"]
[null,null,null,null,null,null,null,null,null,null,null,null,null,null,null,null,null,null,null,null,null,"vert"]
[null,null,null,null,null,null,null,null,null,null,null,null,null,null,null,null,null,null,null,null,"feuil10","rouge"]
[null,null,null,null,null,null,null,null,null,null,null,null,null,null,null,null,null,null,null,null,null,"noire"]
[null,null,null,null,null,null,null,null,null,null,null,null,null,null,null,null,null,null,null,null,null,"orange"]
[null,null,null,null,null,null,null,null,null,null,null,null,null,null,null,null,null,null,null,null,null,"vert"]
[null,null,null,null,null,null,null,null,null,null,null,null,null,null,null,null,null,null,null,null,"feuil11","rouge"]
[null,null,null,null,null,null,null,null,null,null,null,null,null,null,null,null,null,null,null,null,null,"noire"]
[null,null,null,null,null,null,null,null,null,null,null,null,null,null,null,null,null,null,null,null,null,"orange"]
[null,null,null,null,null,null,null,null,null,null,null,null,null,null,null,null,null,null,null,null,null,"vert"]
[null,null,null,null,null,null,null,null,null,null,null,null,null,null,null,null,null,null,null,"p12","Feuil1","rouge"]
[null,null,null,null,null,null,null,null,null,null,null,null,null,null,null,null,null,null,null,null,null,"noire"]
[null,null,null,null,null,null,null,null,null,null,null,null,null,null,null,null,null,null,null,null,null,"orange"]
[null,null,null,null,null,null,null,null,null,null,null,null,null,null,null,null,null,null,null,null,null,"vert"]
[null,null,null,null,null,null,null,null,null,null,null,null,null,null,null,null,null,null,null,null,"feuil2","rouge"]
[null,null,null,null,null,null,null,null,null,null,null,null,null,null,null,null,null,null,null,null,null,"noire"]
[null,null,null,null,null,null,null,null,null,null,null,null,null,null,null,null,null,null,null,null,null,"orange"]
[null,null,null,null,null,null,null,null,null,null,null,null,null,null,null,null,null,null,null,null,null,"vert"]
[null,null,null,null,null,null,null,null,null,null,null,null,null,null,null,null,null,null,null,null,"feuil3","rouge"]
[null,null,null,null,null,null,null,null,null,null,null,null,null,null,null,null,null,null,null,null,null,"noire"]
[null,null,null,null,null,null,null,null,null,null,null,null,null,null,null,null,null,null,null,null,null,"orange"]
[null,null,null,null,null,null,null,null,null,null,null,null,null,null,null,null,null,null,null,null,null,"vert"]
[null,null,null,null,null,null,null,null,null,null,null,null,null,null,null,null,null,null,null,null,"feuil4","rouge"]
[null,null,null,null,null,null,null,null,null,null,null,null,null,null,null,null,null,null,null,null,null,"noire"]
[null,null,null,null,null,null,null,null,null,null,null,null,null,null,null,null,null,null,null,null,null,"orange"]
[null,null,null,null,null,null,null,null,null,null,null,null,null,null,null,null,null,null,null,null,null,"vert"]
[null,null,null,null,null,null,null,null,null,null,null,null,null,null,null,null,null,null,null,null,"feuil5","rouge"]
[null,null,null,null,null,null,null,null,null,null,null,null,null,null,null,null,null,null,null,null,null,"noire"]
[null,null,null,null,null,null,null,null,null,null,null,null,null,null,null,null,null,null,null,null,null,"orange"]
[null,null,null,null,null,null,null,null,null,null,null,null,null,null,null,null,null,null,null,null,null,"vert"]
[null,null,null,null,null,null,null,null,null,null,null,null,null,null,null,null,null,null,null,null,"feuil6","rouge"]
[null,null,null,null,null,null,null,null,null,null,null,null,null,null,null,null,null,null,null,null,null,"noire"]
[null,null,null,null,null,null,null,null,null,null,null,null,null,null,null,null,null,null,null,null,null,"orange"]
[null,null,null,null,null,null,null,null,null,null,null,null,null,null,null,null,null,null,null,null,null,"vert"]
[null,null,null,null,null,null,null,null,null,null,null,null,null,null,null,null,null,null,null,null,"feuil7","rouge"]
[null,null,null,null,null,null,null,null,null,null,null,null,null,null,null,null,null,null,null,null,null,"noire"]
[null,null,null,null,null,null,null,null,null,null,null,null,null,null,null,null,null,null,null,null,null,"orange"]
[null,null,null,null,null,null,null,null,null,null,null,null,null,null,null,null,null,null,null,null,null,"vert"]
[null,null,null,null,null,null,null,null,null,null,null,null,null,null,null,null,null,null,null,null,"feuil8","rouge"]
[null,null,null,null,null,null,null,null,null,null,null,null,null,null,null,null,null,null,null,null,null,"noire"]
[null,null,null,null,null,null,null,null,null,null,null,null,null,null,null,null,null,null,null,null,null,"orange"]
[null,null,null,null,null,null,null,null,null,null,null,null,null,null,null,null,null,null,null,null,null,"vert"]
[null,null,null,null,null,null,null,null,null,null,null,null,null,null,null,null,null,null,null,null,"feuil9","rouge"]
[null,null,null,null,null,null,null,null,null,null,null,null,null,null,null,null,null,null,null,null,null,"noire"]
[null,null,null,null,null,null,null,null,null,null,null,null,null,null,null,null,null,null,null,null,null,"orange"]
[null,null,null,null,null,null,null,null,null,null,null,null,null,null,null,null,null,null,null,null,null,"vert"]
[null,null,null,null,null,null,null,null,null,null,null,null,null,null,null,null,null,null,null,null,"feuil10","rouge"]
[null,null,null,null,null,null,null,null,null,null,null,null,null,null,null,null,null,null,null,null,null,"noire"]
[null,null,null,null,null,null,null,null,null,null,null,null,null,null,null,null,null,null,null,null,null,"orange"]
[null,null,null,null,null,null,null,null,null,null,null,null,null,null,null,null,null,null,null,null,null,"vert"]
[null,null,null,null,null,null,null,null,null,null,null,null,null,null,null,null,null,null,null,null,"feuil11","rouge"]
[null,null,null,null,null,null,null,null,null,null,null,null,null,null,null,null,null,null,null,null,null,"noire"]
[null,null,null,null,null,null,null,null,null,null,null,null,null,null,null,null,null,null,null,null,null,"orange"]
[null,null,null,null,null,null,null,null,null,null,null,null,null,null,null,null,null,null,null,null,null,"vert"]
[null,null,null,null,null,null,null,null,null,null,null,null,null,null,null,null,null,null,null,"p13","Feuil1","rouge"]
[null,null,null,null,null,null,null,null,null,null,null,null,null,null,null,null,null,null,null,null,null,"noire"]
[null,null,null,null,null,null,null,null,null,null,null,null,null,null,null,null,null,null,null,null,null,"orange"]
[null,null,null,null,null,null,null,null,null,null,null,null,null,null,null,null,null,null,null,null,null,"vert"]
[null,null,null,null,null,null,null,null,null,null,null,null,null,null,null,null,null,null,null,null,"feuil2","rouge"]
[null,null,null,null,null,null,null,null,null,null,null,null,null,null,null,null,null,null,null,null,null,"noire"]
[null,null,null,null,null,null,null,null,null,null,null,null,null,null,null,null,null,null,null,null,null,"orange"]
[null,null,null,null,null,null,null,null,null,null,null,null,null,null,null,null,null,null,null,null,null,"vert"]
[null,null,null,null,null,null,null,null,null,null,null,null,null,null,null,null,null,null,null,null,"feuil3","rouge"]
[null,null,null,null,null,null,null,null,null,null,null,null,null,null,null,null,null,null,null,null,null,"noire"]
[null,null,null,null,null,null,null,null,null,null,null,null,null,null,null,null,null,null,null,null,null,"orange"]
[null,null,null,null,null,null,null,null,null,null,null,null,null,null,null,null,null,null,null,null,null,"vert"]
[null,null,null,null,null,null,null,null,null,null,null,null,null,null,null,null,null,null,null,null,"feuil4","rouge"]
[null,null,null,null,null,null,null,null,null,null,null,null,null,null,null,null,null,null,null,null,null,"noire"]
[null,null,null,null,null,null,null,null,null,null,null,null,null,null,null,null,null,null,null,null,null,"orange"]
[null,null,null,null,null,null,null,null,null,null,null,null,null,null,null,null,null,null,null,null,null,"vert"]
[null,null,null,null,null,null,null,null,null,null,null,null,null,null,null,null,null,null,null,null,"feuil5","rouge"]
[null,null,null,null,null,null,null,null,null,null,null,null,null,null,null,null,null,null,null,null,null,"noire"]
[null,null,null,null,null,null,null,null,null,null,null,null,null,null,null,null,null,null,null,null,null,"orange"]
[null,null,null,null,null,null,null,null,null,null,null,null,null,null,null,null,null,null,null,null,null,"vert"]
[null,null,null,null,null,null,null,null,null,null,null,null,null,null,null,null,null,null,null,null,"feuil6","rouge"]
[null,null,null,null,null,null,null,null,null,null,null,null,null,null,null,null,null,null,null,null,null,"noire"]
[null,null,null,null,null,null,null,null,null,null,null,null,null,null,null,null,null,null,null,null,null,"orange"]
[null,null,null,null,null,null,null,null,null,null,null,null,null,null,null,null,null,null,null,null,null,"vert"]
[null,null,null,null,null,null,null,null,null,null,null,null,null,null,null,null,null,null,null,null,"feuil7","rouge"]
[null,null,null,null,null,null,null,null,null,null,null,null,null,null,null,null,null,null,null,null,null,"noire"]
[null,null,null,null,null,null,null,null,null,null,null,null,null,null,null,null,null,null,null,null,null,"orange"]
[null,null,null,null,null,null,null,null,null,null,null,null,null,null,null,null,null,null,null,null,null,"vert"]
[null,null,null,null,null,null,null,null,null,null,null,null,null,null,null,null,null,null,null,null,"feuil8","rouge"]
[null,null,null,null,null,null,null,null,null,null,null,null,null,null,null,null,null,null,null,null,null,"noire"]
[null,null,null,null,null,null,null,null,null,null,null,null,null,null,null,null,null,null,null,null,null,"orange"]
[null,null,null,null,null,null,null,null,null,null,null,null,null,null,null,null,null,null,null,null,null,"vert"]
[null,null,null,null,null,null,null,null,null,null,null,null,null,null,null,null,null,null,null,null,"feuil9","rouge"]
[null,null,null,null,null,null,null,null,null,null,null,null,null,null,null,null,null,null,null,null,null,"noire"]
[null,null,null,null,null,null,null,null,null,null,null,null,null,null,null,null,null,null,null,null,null,"orange"]
[null,null,null,null,null,null,null,null,null,null,null,null,null,null,null,null,null,null,null,null,null,"vert"]
[null,null,null,null,null,null,null,null,null,null,null,null,null,null,null,null,null,null,null,null,"feuil10","rouge"]
[null,null,null,null,null,null,null,null,null,null,null,null,null,null,null,null,null,null,null,null,null,"noire"]
[null,null,null,null,null,null,null,null,null,null,null,null,null,null,null,null,null,null,null,null,null,"orange"]
[null,null,null,null,null,null,null,null,null,null,null,null,null,null,null,null,null,null,null,null,null,"vert"]
[null,null,null,null,null,null,null,null,null,null,null,null,null,null,null,null,null,null,null,null,"feuil11","rouge"]
[null,null,null,null,null,null,null,null,null,null,null,null,null,null,null,null,null,null,null,null,null,"noire"]
[null,null,null,null,null,null,null,null,null,null,null,null,null,null,null,null,null,null,null,null,null,"orange"]
[null,null,null,null,null,null,null,null,null,null,null,null,null,null,null,null,null,null,null,null,null,"vert"]
[null,null,null,null,null,null,null,null,null,null,null,null,null,null,null,null,null,null,null,"p14","Feuil1","rouge"]
[null,null,null,null,null,null,null,null,null,null,null,null,null,null,null,null,null,null,null,null,null,"noire"]
[null,null,null,null,null,null,null,null,null,null,null,null,null,null,null,null,null,null,null,null,null,"orange"]
[null,null,null,null,null,null,null,null,null,null,null,null,null,null,null,null,null,null,null,null,null,"vert"]
[null,null,null,null,null,null,null,null,null,null,null,null,null,null,null,null,null,null,null,null,"feuil2","rouge"]
[null,null,null,null,null,null,null,null,null,null,null,null,null,null,null,null,null,null,null,null,null,"noire"]
[null,null,null,null,null,null,null,null,null,null,null,null,null,null,null,null,null,null,null,null,null,"orange"]
[null,null,null,null,null,null,null,null,null,null,null,null,null,null,null,null,null,null,null,null,null,"vert"]
[null,null,null,null,null,null,null,null,null,null,null,null,null,null,null,null,null,null,null,null,"feuil3","rouge"]
[null,null,null,null,null,null,null,null,null,null,null,null,null,null,null,null,null,null,null,null,null,"noire"]
[null,null,null,null,null,null,null,null,null,null,null,null,null,null,null,null,null,null,null,null,null,"orange"]
[null,null,null,null,null,null,null,null,null,null,null,null,null,null,null,null,null,null,null,null,null,"vert"]
[null,null,null,null,null,null,null,null,null,null,null,null,null,null,null,null,null,null,null,null,"feuil4","rouge"]
[null,null,null,null,null,null,null,null,null,null,null,null,null,null,null,null,null,null,null,null,null,"noire"]
[null,null,null,null,null,null,null,null,null,null,null,null,null,null,null,null,null,null,null,null,null,"orange"]
[null,null,null,null,null,null,null,null,null,null,null,null,null,null,null,null,null,null,null,null,null,"vert"]
[null,null,null,null,null,null,null,null,null,null,null,null,null,null,null,null,null,null,null,null,"feuil5","rouge"]
[null,null,null,null,null,null,null,null,null,null,null,null,null,null,null,null,null,null,null,null,null,"noire"]
[null,null,null,null,null,null,null,null,null,null,null,null,null,null,null,null,null,null,null,null,null,"orange"]
[null,null,null,null,null,null,null,null,null,null,null,null,null,null,null,null,null,null,null,null,null,"vert"]
[null,null,null,null,null,null,null,null,null,null,null,null,null,null,null,null,null,null,null,null,"feuil6","rouge"]
[null,null,null,null,null,null,null,null,null,null,null,null,null,null,null,null,null,null,null,null,null,"noire"]
[null,null,null,null,null,null,null,null,null,null,null,null,null,null,null,null,null,null,null,null,null,"orange"]
[null,null,null,null,null,null,null,null,null,null,null,null,null,null,null,null,null,null,null,null,null,"vert"]
[null,null,null,null,null,null,null,null,null,null,null,null,null,null,null,null,null,null,null,null,"feuil7","rouge"]
[null,null,null,null,null,null,null,null,null,null,null,null,null,null,null,null,null,null,null,null,null,"noire"]
[null,null,null,null,null,null,null,null,null,null,null,null,null,null,null,null,null,null,null,null,null,"orange"]
[null,null,null,null,null,null,null,null,null,null,null,null,null,null,null,null,null,null,null,null,null,"vert"]
[null,null,null,null,null,null,null,null,null,null,null,null,null,null,null,null,null,null,null,null,"feuil8","rouge"]
[null,null,null,null,null,null,null,null,null,null,null,null,null,null,null,null,null,null,null,null,null,"noire"]
[null,null,null,null,null,null,null,null,null,null,null,null,null,null,null,null,null,null,null,null,null,"orange"]
[null,null,null,null,null,null,null,null,null,null,null,null,null,null,null,null,null,null,null,null,null,"vert"]
[null,null,null,null,null,null,null,null,null,null,null,null,null,null,null,null,null,null,null,null,"feuil9","rouge"]
[null,null,null,null,null,null,null,null,null,null,null,null,null,null,null,null,null,null,null,null,null,"noire"]
[null,null,null,null,null,null,null,null,null,null,null,null,null,null,null,null,null,null,null,null,null,"orange"]
[null,null,null,null,null,null,null,null,null,null,null,null,null,null,null,null,null,null,null,null,null,"vert"]
[null,null,null,null,null,null,null,null,null,null,null,null,null,null,null,null,null,null,null,null,"feuil10","rouge"]
[null,null,null,null,null,null,null,null,null,null,null,null,null,null,null,null,null,null,null,null,null,"noire"]
[null,null,null,null,null,null,null,null,null,null,null,null,null,null,null,null,null,null,null,null,null,"orange"]
[null,null,null,null,null,null,null,null,null,null,null,null,null,null,null,null,null,null,null,null,null,"vert"]
[null,null,null,null,null,null,null,null,null,null,null,null,null,null,null,null,null,null,null,null,"feuil11","rouge"]
[null,null,null,null,null,null,null,null,null,null,null,null,null,null,null,null,null,null,null,null,null,"noire"]
[null,null,null,null,null,null,null,null,null,null,null,null,null,null,null,null,null,null,null,null,null,"orange"]
[null,null,null,null,null,null,null,null,null,null,null,null,null,null,null,null,null,null,null,null,null,"vert"]
[null,null,null,null,null,null,null,null,null,null,null,null,null,null,null,null,null,null,null,"p15","Feuil1","rouge"]
[null,null,null,null,null,null,null,null,null,null,null,null,null,null,null,null,null,null,null,null,null,"noire"]
[null,null,null,null,null,null,null,null,null,null,null,null,null,null,null,null,null,null,null,null,null,"orange"]
[null,null,null,null,null,null,null,null,null,null,null,null,null,null,null,null,null,null,null,null,null,"vert"]
[null,null,null,null,null,null,null,null,null,null,null,null,null,null,null,null,null,null,null,null,"feuil2","rouge"]
[null,null,null,null,null,null,null,null,null,null,null,null,null,null,null,null,null,null,null,null,null,"noire"]
[null,null,null,null,null,null,null,null,null,null,null,null,null,null,null,null,null,null,null,null,null,"orange"]
[null,null,null,null,null,null,null,null,null,null,null,null,null,null,null,null,null,null,null,null,null,"vert"]
[null,null,null,null,null,null,null,null,null,null,null,null,null,null,null,null,null,null,null,null,"feuil3","rouge"]
[null,null,null,null,null,null,null,null,null,null,null,null,null,null,null,null,null,null,null,null,null,"noire"]
[null,null,null,null,null,null,null,null,null,null,null,null,null,null,null,null,null,null,null,null,null,"orange"]
[null,null,null,null,null,null,null,null,null,null,null,null,null,null,null,null,null,null,null,null,null,"vert"]
[null,null,null,null,null,null,null,null,null,null,null,null,null,null,null,null,null,null,null,null,"feuil4","rouge"]
[null,null,null,null,null,null,null,null,null,null,null,null,null,null,null,null,null,null,null,null,null,"noire"]
[null,null,null,null,null,null,null,null,null,null,null,null,null,null,null,null,null,null,null,null,null,"orange"]
[null,null,null,null,null,null,null,null,null,null,null,null,null,null,null,null,null,null,null,null,null,"vert"]
[null,null,null,null,null,null,null,null,null,null,null,null,null,null,null,null,null,null,null,null,"feuil5","rouge"]
[null,null,null,null,null,null,null,null,null,null,null,null,null,null,null,null,null,null,null,null,null,"noire"]
[null,null,null,null,null,null,null,null,null,null,null,null,null,null,null,null,null,null,null,null,null,"orange"]
[null,null,null,null,null,null,null,null,null,null,null,null,null,null,null,null,null,null,null,null,null,"vert"]
[null,null,null,null,null,null,null,null,null,null,null,null,null,null,null,null,null,null,null,null,"feuil6","rouge"]
[null,null,null,null,null,null,null,null,null,null,null,null,null,null,null,null,null,null,null,null,null,"noire"]
[null,null,null,null,null,null,null,null,null,null,null,null,null,null,null,null,null,null,null,null,null,"orange"]
[null,null,null,null,null,null,null,null,null,null,null,null,null,null,null,null,null,null,null,null,null,"vert"]
[null,null,null,null,null,null,null,null,null,null,null,null,null,null,null,null,null,null,null,null,"feuil7","rouge"]
[null,null,null,null,null,null,null,null,null,null,null,null,null,null,null,null,null,null,null,null,null,"noire"]
[null,null,null,null,null,null,null,null,null,null,null,null,null,null,null,null,null,null,null,null,null,"orange"]
[null,null,null,null,null,null,null,null,null,null,null,null,null,null,null,null,null,null,null,null,null,"vert"]
[null,null,null,null,null,null,null,null,null,null,null,null,null,null,null,null,null,null,null,null,"feuil8","rouge"]
[null,null,null,null,null,null,null,null,null,null,null,null,null,null,null,null,null,null,null,null,null,"noire"]
[null,null,null,null,null,null,null,null,null,null,null,null,null,null,null,null,null,null,null,null,null,"orange"]
[null,null,null,null,null,null,null,null,null,null,null,null,null,null,null,null,null,null,null,null,null,"vert"]
[null,null,null,null,null,null,null,null,null,null,null,null,null,null,null,null,null,null,null,null,"feuil9","rouge"]
[null,null,null,null,null,null,null,null,null,null,null,null,null,null,null,null,null,null,null,null,null,"noire"]
[null,null,null,null,null,null,null,null,null,null,null,null,null,null,null,null,null,null,null,null,null,"orange"]
[null,null,null,null,null,null,null,null,null,null,null,null,null,null,null,null,null,null,null,null,null,"vert"]
[null,null,null,null,null,null,null,null,null,null,null,null,null,null,null,null,null,null,null,null,"feuil10","rouge"]
[null,null,null,null,null,null,null,null,null,null,null,null,null,null,null,null,null,null,null,null,null,"noire"]
[null,null,null,null,null,null,null,null,null,null,null,null,null,null,null,null,null,null,null,null,null,"orange"]
[null,null,null,null,null,null,null,null,null,null,null,null,null,null,null,null,null,null,null,null,null,"vert"]
[null,null,null,null,null,null,null,null,null,null,null,null,null,null,null,null,null,null,null,null,"feuil11","rouge"]
[null,null,null,null,null,null,null,null,null,null,null,null,null,null,null,null,null,null,null,null,null,"noire"]
[null,null,null,null,null,null,null,null,null,null,null,null,null,null,null,null,null,null,null,null,null,"orange"]
[null,null,null,null,null,null,null,null,null,null,null,null,null,null,null,null,null,null,null,null,null,"vert"]
[null,null,null,null,null,null,null,null,null,null,null,null,null,null,null,null,null,null,null,"p16","Feuil1","rouge"]
[null,null,null,null,null,null,null,null,null,null,null,null,null,null,null,null,null,null,null,null,null,"noire"]
[null,null,null,null,null,null,null,null,null,null,null,null,null,null,null,null,null,null,null,null,null,"orange"]
[null,null,null,null,null,null,null,null,null,null,null,null,null,null,null,null,null,null,null,null,null,"vert"]
[null,null,null,null,null,null,null,null,null,null,null,null,null,null,null,null,null,null,null,null,"feuil2","rouge"]
[null,null,null,null,null,null,null,null,null,null,null,null,null,null,null,null,null,null,null,null,null,"noire"]
[null,null,null,null,null,null,null,null,null,null,null,null,null,null,null,null,null,null,null,null,null,"orange"]
[null,null,null,null,null,null,null,null,null,null,null,null,null,null,null,null,null,null,null,null,null,"vert"]
[null,null,null,null,null,null,null,null,null,null,null,null,null,null,null,null,null,null,null,null,"feuil3","rouge"]
[null,null,null,null,null,null,null,null,null,null,null,null,null,null,null,null,null,null,null,null,null,"noire"]
[null,null,null,null,null,null,null,null,null,null,null,null,null,null,null,null,null,null,null,null,null,"orange"]
[null,null,null,null,null,null,null,null,null,null,null,null,null,null,null,null,null,null,null,null,null,"vert"]
[null,null,null,null,null,null,null,null,null,null,null,null,null,null,null,null,null,null,null,null,"feuil4","rouge"]
[null,null,null,null,null,null,null,null,null,null,null,null,null,null,null,null,null,null,null,null,null,"noire"]
[null,null,null,null,null,null,null,null,null,null,null,null,null,null,null,null,null,null,null,null,null,"orange"]
[null,null,null,null,null,null,null,null,null,null,null,null,null,null,null,null,null,null,null,null,null,"vert"]
[null,null,null,null,null,null,null,null,null,null,null,null,null,null,null,null,null,null,null,null,"feuil5","rouge"]
[null,null,null,null,null,null,null,null,null,null,null,null,null,null,null,null,null,null,null,null,null,"noire"]
[null,null,null,null,null,null,null,null,null,null,null,null,null,null,null,null,null,null,null,null,null,"orange"]
[null,null,null,null,null,null,null,null,null,null,null,null,null,null,null,null,null,null,null,null,null,"vert"]
[null,null,null,null,null,null,null,null,null,null,null,null,null,null,null,null,null,null,null,null,"feuil6","rouge"]
[null,null,null,null,null,null,null,null,null,null,null,null,null,null,null,null,null,null,null,null,null,"noire"]
[null,null,null,null,null,null,null,null,null,null,null,null,null,null,null,null,null,null,null,null,null,"orange"]
[null,null,null,null,null,null,null,null,null,null,null,null,null,null,null,null,null,null,null,null,null,"vert"]
[null,null,null,null,null,null,null,null,null,null,null,null,null,null,null,null,null,null,null,null,"feuil7","rouge"]
[null,null,null,null,null,null,null,null,null,null,null,null,null,null,null,null,null,null,null,null,null,"noire"]
[null,null,null,null,null,null,null,null,null,null,null,null,null,null,null,null,null,null,null,null,null,"orange"]
[null,null,null,null,null,null,null,null,null,null,null,null,null,null,null,null,null,null,null,null,null,"vert"]
[null,null,null,null,null,null,null,null,null,null,null,null,null,null,null,null,null,null,null,null,"feuil8","rouge"]
[null,null,null,null,null,null,null,null,null,null,null,null,null,null,null,null,null,null,null,null,null,"noire"]
[null,null,null,null,null,null,null,null,null,null,null,null,null,null,null,null,null,null,null,null,null,"orange"]
[null,null,null,null,null,null,null,null,null,null,null,null,null,null,null,null,null,null,null,null,null,"vert"]
[null,null,null,null,null,null,null,null,null,null,null,null,null,null,null,null,null,null,null,null,"feuil9","rouge"]
[null,null,null,null,null,null,null,null,null,null,null,null,null,null,null,null,null,null,null,null,null,"noire"]
[null,null,null,null,null,null,null,null,null,null,null,null,null,null,null,null,null,null,null,null,null,"orange"]
[null,null,null,null,null,null,null,null,null,null,null,null,null,null,null,null,null,null,null,null,null,"vert"]
[null,null,null,null,null,null,null,null,null,null,null,null,null,null,null,null,null,null,null,null,"feuil10","rouge"]
[null,null,null,null,null,null,null,null,null,null,null,null,null,null,null,null,null,null,null,null,null,"noire"]
[null,null,null,null,null,null,null,null,null,null,null,null,null,null,null,null,null,null,null,null,null,"orange"]
[null,null,null,null,null,null,null,null,null,null,null,null,null,null,null,null,null,null,null,null,null,"vert"]
[null,null,null,null,null,null,null,null,null,null,null,null,null,null,null,null,null,null,null,null,"feuil11","rouge"]
[null,null,null,null,null,null,null,null,null,null,null,null,null,null,null,null,null,null,null,null,null,"noire"]
[null,null,null,null,null,null,null,null,null,null,null,null,null,null,null,null,null,null,null,null,null,"orange"]
[null,null,null,null,null,null,null,null,null,null,null,null,null,null,null,null,null,null,null,null,null,"vert"]
[null,null,null,null,null,null,null,null,null,null,null,null,null,null,null,null,null,null,null,"p17","Feuil1","rouge"]
[null,null,null,null,null,null,null,null,null,null,null,null,null,null,null,null,null,null,null,null,null,"noire"]
[null,null,null,null,null,null,null,null,null,null,null,null,null,null,null,null,null,null,null,null,null,"orange"]
[null,null,null,null,null,null,null,null,null,null,null,null,null,null,null,null,null,null,null,null,null,"vert"]
[null,null,null,null,null,null,null,null,null,null,null,null,null,null,null,null,null,null,null,null,"feuil2","rouge"]
[null,null,null,null,null,null,null,null,null,null,null,null,null,null,null,null,null,null,null,null,null,"noire"]
[null,null,null,null,null,null,null,null,null,null,null,null,null,null,null,null,null,null,null,null,null,"orange"]
[null,null,null,null,null,null,null,null,null,null,null,null,null,null,null,null,null,null,null,null,null,"vert"]
[null,null,null,null,null,null,null,null,null,null,null,null,null,null,null,null,null,null,null,null,"feuil3","rouge"]
[null,null,null,null,null,null,null,null,null,null,null,null,null,null,null,null,null,null,null,null,null,"noire"]
[null,null,null,null,null,null,null,null,null,null,null,null,null,null,null,null,null,null,null,null,null,"orange"]
[null,null,null,null,null,null,null,null,null,null,null,null,null,null,null,null,null,null,null,null,null,"vert"]
[null,null,null,null,null,null,null,null,null,null,null,null,null,null,null,null,null,null,null,null,"feuil4","rouge"]
[null,null,null,null,null,null,null,null,null,null,null,null,null,null,null,null,null,null,null,null,null,"noire"]
[null,null,null,null,null,null,null,null,null,null,null,null,null,null,null,null,null,null,null,null,null,"orange"]
[null,null,null,null,null,null,null,null,null,null,null,null,null,null,null,null,null,null,null,null,null,"vert"]
[null,null,null,null,null,null,null,null,null,null,null,null,null,null,null,null,null,null,null,null,"feuil5","rouge"]
[null,null,null,null,null,null,null,null,null,null,null,null,null,null,null,null,null,null,null,null,null,"noire"]
[null,null,null,null,null,null,null,null,null,null,null,null,null,null,null,null,null,null,null,null,null,"orange"]
[null,null,null,null,null,null,null,null,null,null,null,null,null,null,null,null,null,null,null,null,null,"vert"]
[null,null,null,null,null,null,null,null,null,null,null,null,null,null,null,null,null,null,null,null,"feuil6","rouge"]
[null,null,null,null,null,null,null,null,null,null,null,null,null,null,null,null,null,null,null,null,null,"noire"]
[null,null,null,null,null,null,null,null,null,null,null,null,null,null,null,null,null,null,null,null,null,"orange"]
[null,null,null,null,null,null,null,null,null,null,null,null,null,null,null,null,null,null,null,null,null,"vert"]
[null,null,null,null,null,null,null,null,null,null,null,null,null,null,null,null,null,null,null,null,"feuil7","rouge"]
[null,null,null,null,null,null,null,null,null,null,null,null,null,null,null,null,null,null,null,null,null,"noire"]
[null,null,null,null,null,null,null,null,null,null,null,null,null,null,null,null,null,null,null,null,null,"orange"]
[null,null,null,null,null,null,null,null,null,null,null,null,null,null,null,null,null,null,null,null,null,"vert"]
[null,null,null,null,null,null,null,null,null,null,null,null,null,null,null,null,null,null,null,null,"feuil8","rouge"]
[null,null,null,null,null,null,null,null,null,null,null,null,null,null,null,null,null,null,null,null,null,"noire"]
[null,null,null,null,null,null,null,null,null,null,null,null,null,null,null,null,null,null,null,null,null,"orange"]
[null,null,null,null,null,null,null,null,null,null,null,null,null,null,null,null,null,null,null,null,null,"vert"]
[null,null,null,null,null,null,null,null,null,null,null,null,null,null,null,null,null,null,null,null,"feuil9","rouge"]
[null,null,null,null,null,null,null,null,null,null,null,null,null,null,null,null,null,null,null,null,null,"noire"]
[null,null,null,null,null,null,null,null,null,null,null,null,null,null,null,null,null,null,null,null,null,"orange"]
[null,null,null,null,null,null,null,null,null,null,null,null,null,null,null,null,null,null,null,null,null,"vert"]
[null,null,null,null,null,null,null,null,null,null,null,null,null,null,null,null,null,null,null,null,"feuil10","rouge"]
[null,null,null,null,null,null,null,null,null,null,null,null,null,null,null,null,null,null,null,null,null,"noire"]
[null,null,null,null,null,null,null,null,null,null,null,null,null,null,null,null,null,null,null,null,null,"orange"]
[null,null,null,null,null,null,null,null,null,null,null,null,null,null,null,null,null,null,null,null,null,"vert"]
[null,null,null,null,null,null,null,null,null,null,null,null,null,null,null,null,null,null,null,null,"feuil11","rouge"]
[null,null,null,null,null,null,null,null,null,null,null,null,null,null,null,null,null,null,null,null,null,"noire"]
[null,null,null,null,null,null,null,null,null,null,null,null,null,null,null,null,null,null,null,null,null,"orange"]
[null,null,null,null,null,null,null,null,null,null,null,null,null,null,null,null,null,null,null,null,null,"vert"]